{"text_format":"1","workbook":"xlsx","n_sheets":5,"sheets":["Contents","Cover","1. F-Factor summary","2. Individual fire start info","3. Systems and Audit"],"not_rendered":{"charts":0,"images":2,"macros":1,"external_links":2,"defined_names":97,"comments":0,"pivot_tables":0},"unopened":[],"bounds":{"document_bytes":16777216,"sheet_cells":100000,"rows_first":2000,"rows_last":500,"rows_between":2000,"halvings":0,"cell_chars":16384,"cell_head_chars":4096},"cells_cut":0,"cells_raw":0,"read":"whole","date_system":"1900"}

{"sheet":"Contents","index":0,"n_rows":12,"n_cols":6,"rows_kept":12,"cut":false,"hidden":false,"merged":[[8,2,9,3],[2,1,2,10],[4,1,4,10]]}
[" "]
[]
[null,"Electricity Distribution Network Service Provider\nF-factor Reporting Template"]
[]
[null,"Table of contents"]
[]
[]
[null,null,"Cover sheet",null,null,"2. Fire start report"]
[]
[]
[]
[null,null,"1. F-factor summary",null,null,"3. Systems and Audit"]

{"sheet":"Cover","index":1,"n_rows":49,"n_cols":7,"rows_kept":49,"cut":false,"hidden":false,"merged":[[10,1,11,8],[13,1,13,8],[48,2,48,6],[42,2,42,3],[42,4,42,7],[46,2,46,6],[47,2,47,6],[38,2,38,3],[38,4,38,7],[41,2,41,3],[41,4,41,7],[37,2,37,3],[37,4,37,7],[32,3,32,8],[30,3,30,8],[15,1,15,8],[26,3,26,8],[28,3,28,8],[26,1,26,2],[31,3,31,5],[14,1,14,8],[16,1,16,8],[17,1,17,8],[21,1,21,8],[19,1,19,8]]}
[]
[]
[]
[]
[]
[]
[]
[null,"Distribution Network Service Provider"]
[null,"Fire start report"]
[]
[null,"This template is to be used by a DNSP to provide a fire start report to the AER in accordance with section 5 of the F-factor Order in Council.  "]
[]
[]
[null,"Colour coding of input sheets:"]
[null,"Dark blue = AER headings"]
[null,"Grey = AER instructions"]
[null,"Yellow = Input cells"]
[null,"Light orange = Automatically-generated cells"]
[]
[null,"Leave coloured cells blank if no information exists - PLEASE DO NOT ENTER TEXT unless specifically requested to do so."]
[null,"The cells and structure of the spreadsheet is locked to prevent inadvertent interference with the automated settings."]
[null,"All dollar amounts are to be unrounded, and in nominal terms."]
[]
[]
[]
[]
[null,"DNSP:",null,"AusNet Services"]
[]
[null,"DNSP - trading name:"]
[]
[null,"DNSP - Australian business number: ",null,"91 064 651 118"]
[]
[null,"Reporting year:",null,"2018/19"]
[]
[]
[]
[]
[null,"Business address","Address",null,"Level 31, 2 Southbank Boulevard"]
[null,null,"Suburb",null,"Southbank"]
[null,null,null,"State","Victoria","Postcode",3006]
[]
[null,"Postal address","Address",null,"Locked Bag 14051 MCMC"]
[null,null,"Suburb",null,"Melbourne"]
[null,null,null,"State","Victoria","Postcode",8001]
[]
[]
[null,"Contact name/s","Hawaii Ho"]
[null,"Contact phone/s","03 9695 6350"]
[null,"Contact email address/s","Hawaii.Ho@ausnetservices.com.au"]

{"sheet":"1. F-Factor summary","index":2,"n_rows":14,"n_cols":15,"rows_kept":14,"cut":false,"hidden":false,"merged":[[5,1,5,2],[3,6,3,8],[4,6,4,8],[5,6,5,8],[11,2,11,3],[12,2,12,3],[13,2,13,3],[6,2,6,3],[7,2,7,3],[8,2,8,3],[9,2,9,3],[10,2,10,3]]}
[null,{"$f":"IF(Cover!D27=\"\",\"[DNSP Name]\", Cover!D27)","v":"AusNet Services"},"IRU target:",{"$f":"IF(SUM(K6:O6)=0,\"\",SUM(K6:O6))","v":247.7},null,null,null,null,null,null,"AusNet Services","CitiPower","Jemena","Powercor","United Energy"]
[null,"F-factor data reporting","IRU amount:",{"$f":"IF(SUM('2. Individual fire start info'!S38:S1994)=0,\"\",SUM('2. Individual fire start info'!S38:S1994))","v":220.75999999999976},null,null,null,null,null,"2016/17",247.7,3.4,9.6999999999999993,468,22.3]
[null,{"$f":"IF(Cover!D33=\"\",\"[Year]\",Cover!D33)","v":"2018/19"},"Revenue adjustment:",{"$f":"IF(OR(D1=\"\",D2=\"\"),\"\",15000*(D1-D2))","v":404100.00000000338},null,null,null,null,null,"2017/18",247.7,3.4,9.6999999999999993,468,22.3]
[null,null,null,null,null,null,null,null,null,"2018/19",247.7,3.4,9.6999999999999993,468,22.3]
[null,"Table 2: Summary of total fire starts by F factor Order definition",null,null,null,null,null,null,null,"2019/20",221.1,3.4,9.6999999999999993,412.8,22.3]
[null,"This is a summary of data in worksheet \"2. Fire Start Report\"",null,null,null,null,null,null,null,null,{"$f":"IF(OR($B3=\"[Year]\",$B1=\"[DNSP Name]\",$B1<>K1),\"\",LOOKUP($B3,$J2:$J5,K2:K5))","v":247.7},{"$f":"IF(OR($B3=\"[Year]\",$B1=\"[DNSP Name]\",$B1<>L1),\"\",LOOKUP($B3,$J2:$J5,L2:L5))","v":""},{"$f":"IF(OR($B3=\"[Year]\",$B1=\"[DNSP Name]\",$B1<>M1),\"\",LOOKUP($B3,$J2:$J5,M2:M5))","v":""},{"$f":"IF(OR($B3=\"[Year]\",$B1=\"[DNSP Name]\",$B1<>N1),\"\",LOOKUP($B3,$J2:$J5,N2:N5))","v":""},{"$f":"IF(OR($B3=\"[Year]\",$B1=\"[DNSP Name]\",$B1<>O1),\"\",LOOKUP($B3,$J2:$J5,O2:O5))","v":""}]
[null,"Kind of Fire Start by definition of fire start under clause 5 of F-factor Order","Total fires by cause"]
[null,"Started in or originated from a distribution system",{"$f":"COUNTIF('2. Individual fire start info'!$N$38:$N$1994,'1. F-Factor summary'!$B8)","v":0}]
[null,"Started by any tree, or part of a tree, falling upon or coming into contact with a distribution system",{"$f":"COUNTIF('2. Individual fire start info'!$N$38:$N$1994,'1. F-Factor summary'!$B9)","v":17}]
[null,"Started by any person, bird, reptile or other animal coming into contact with a distribution system",{"$f":"COUNTIF('2. Individual fire start info'!$N$38:$N$1994,'1. F-Factor summary'!$B10)","v":14}]
[null,"Started by lightning striking a distribution system or a part of a distribution system ",{"$f":"COUNTIF('2. Individual fire start info'!$N$38:$N$1994,'1. F-Factor summary'!$B11)","v":5}]
[null,"Started by any other thing forming part of or coming into contact with a distribution system",{"$f":"COUNTIF('2. Individual fire start info'!$N$38:$N$1994,'1. F-Factor summary'!$B12)","v":7}]
[null,"Otherwise started by a distribution system",{"$f":"COUNTIF('2. Individual fire start info'!$N$38:$N$1994,'1. F-Factor summary'!$B13)","v":117}]
[null,"Total",{"$f":"SUM(C8:C13)","v":160}]

{"sheet":"2. Individual fire start info","index":3,"n_rows":197,"n_cols":25,"rows_kept":197,"cut":false,"hidden":false,"merged":[[25,1,25,18],[27,1,27,20],[26,1,26,21],[35,19,35,21],[33,1,33,4],[35,2,35,10],[28,1,28,18],[29,1,29,18],[35,11,35,13],[35,14,35,17],[13,1,13,11],[22,1,22,21],[24,1,24,21],[14,1,14,20],[15,1,15,18],[16,1,16,18],[18,1,18,18],[21,1,21,18],[19,1,19,18],[23,1,23,18],[20,1,20,18],[17,1,17,18],[3,22,3,24],[4,22,4,24],[5,22,5,24],[7,1,7,21],[11,1,11,2],[9,1,9,21]]}
[null,{"$f":"IF(Cover!D27=\"\",\"[DNSP Name]\", Cover!D27)","v":"AusNet Services"}]
[null,"F-factor data reporting"]
[null,{"$f":"IF(Cover!D33=\"\",\"[Year]\",Cover!D33)","v":"2018/19"}]
[]
[]
[null,"Instructions:"]
[]
[null,{"$f":"\"Enter into this worksheet fire start data, from any IT system, which have been recorded by \"&IF(Cover!D27=\"\",\"[DNSP Name]\", Cover!D27)&\". Note that fire starts must be in accordance with the definition of a fire start in the Order In Council.\"","v":"Enter into this worksheet fire start data, from any IT system, which have been recorded by AusNet Services. Note that fire starts must be in accordance with the definition of a fire start in the Order In Council."}]
[]
[null,"\"Fire\" should be interpreted using its common meaning and can be defined as a process in which substances combine chemically with oxygen from the air and typically give out bright light, heat and smoke. A fire should be recorded where there is evidence of smoking, charring, scorching, burning or any other evidence that a fire had occurred.  "]
[]
[null,{"$f":"IF(Cover!D27=\"\",\"[DNSP Name] must provide:\", CONCATENATE(Cover!D27,\" must provide:\"))","v":"AusNet Services must provide:"}]
[]
[null,"Table 3 - Individual Fire Starts"]
[null,"   (1) Date - dd/mm/yyyy"]
[null,"   (2) Time - if known, the 24-hour time of the fire start hh:mm"]
[null,"   (3) Latitude and longitude of the fire start as decimal coordinates"]
[null,"   (4) Address of the property on which the incident occurred or closest to the incident"]
[null,"   (5) Asset number for the asset nearest the fire start"]
[null,{"$f":"\"   (6) Feeder ID for the polyphase overhead line or underground cable nearest the fire start in the \"&B1&\" network\"","v":"   (6) Feeder ID for the polyphase overhead line or underground cable nearest the fire start in the AusNet Services network"}]
[null,"   (7) Voltage on the line in which the fire start occurred (note: this may not be the nearest polyphase overhead line)"]
[null,"   (8) Network categorisation - CBD, Urban, Rural Long or Rural Short"]
[null,"   (9) Asset type of primary asset causing fire in accordance with OSIRIS asset categories"]
[null,"   (10) Where the asset involved in the fire is a transformer or an overhead or underground line, provide the phase, or phases, of the line or transformer"]
[null,"   (11) Kind of fire start in accordance with categories specified in Clause 5 of the F-factor Order-In-Council"]
[null,"   (12) Identify the location of the fire start in accordance with the categories specified in Clause 11(b) of the F-factor Order-In-Council"]
[null,"   (13) Provide the BOM fire danger rating applicable at the time of the fire start (data is available on the EM-COP website)"]
[null,{"$f":"\"   (14) \"&IF(Cover!D27=\"\",\"[DNSP Name]\", Cover!D27)&\"'s record number for the incident\"","v":"   (14) AusNet Services's record number for the incident"}]
[null,"   (15) ESV's OSIRIS reference number for the incident"]
[null,"   (16) Free text description of the fault containing relevant comments from field reports "]
[]
[]
[]
[null,"Table 2: Individual Fire Starts"]
[]
[null,"Number","Fire starts",null,null,null,null,null,null,null,null,"Fire Type",null,null,"Risk Factors",null,null,null,"IRU \namount","Additional information"]
[null,null,"Date 1","Time 2","Latitude 3","Longitude 3","Address of incident 4","ID of \nnearest \nasset 5","ID of nearest \npolyphase \nline 6","Voltage of line in which \nfire start \noccurred 7","Network categorisation 8","Type of primary asset \ninvolved in fire start 9","Phase(s) of \nline or \ntransformer 10","Kind of fire start as per Clause 5\nof F-factor Order-In-Council 11","Location \narea 12","Location\nmultiplier","Fire \ndanger \nrating 13","Danger multiplier","Product of multipliers","DNSP record number 14","OSIRIS \n(ESV) reference \nnumber 15","Fault \ndescription 16"]
[{"$f":"COUNTA(C38:O38,Q38,T38:V38)","v":17},1,"2018-07-02T18:26:35",43283.768460648149,-37.815775992239793,145.30527097519001,"144 COLCHESTER ROAD, BAYSWATER NORTH VIC 3153",1208636,"CYN13","Low voltage AC (<1kV)","URBAN"," - luminaires (minor road)","single phase","Otherwise started by a distribution system","LBRA only",{"$f":"IF(O38=\"\",\"\",IF(O38=\"LBRA only\",0.2,IF(O38=\"HBRA only\",1,IF(O38=\"within electric line construction area\",19.8,IF(O38=\"within area delineated on plan LEGL./16-354\",4.6,\"\")))))","v":0.2},"NO FORECAST",{"$f":"IF(Q38=\"\",\"\",IF(Q38=\"No forecast\",0.1,IF(Q38=\"Low-moderate\",0.2,IF(Q38=\"High\",0.5,IF(Q38=\"Very high\",1,IF(Q38=\"Severe\",2,IF(Q38=\"Extreme\",3.5,5)))))))","v":0.1},{"$f":"IF(OR(P38=\"\",R38=\"\"),\"\",IF(AND(O38=\"within electric line construction area\",Q38=\"No forecast\"),1,P38*R38))","v":2.0000000000000004E-2},"E0025486","20190827SPN_03","Street light has failed. Cause of failure unknown. Investigation conducted but inconclusive and unable to determine cause of failure.",null,null,"Overhead conductors"]
[17,2,"2018-07-02T18:38:00",43283.776388888888,-37.848117493429498,145.28642556598803,"364 DORSET ROAD, BORONIA VIC 3155",5625975,"BWR22","Low voltage AC (<1kV)","URBAN"," - luminaires (major road)","single phase","Otherwise started by a distribution system","LBRA only",0.2,"NO FORECAST",0.1,2.0000000000000004E-2,"E0004367","20181112SPN_04","Street light head caught fire. Cause of failure unknown",null,null," - overhead conductor (bare; aluminium core steel reinforced)"]
[17,3,"2018-07-07T18:56:00",43288.788888888892,-38.5174570116585,145.79753200739401,"770 OUTTRIM-LEONGATHA ROAD, OUTTRIM VIC 3951",596635,"LGA23","Low voltage AC (<1kV)","RURAL LONG"," - connection box","single phase","Otherwise started by a distribution system","HBRA only",1,"NO FORECAST",0.1,0.1,234278,"20180821SPN_01","LV fuse box melted on pole LIS 596635 (cause unknown) resulting in small ground fire in the vacinity",null,null," - overhead conductor (bare; all aluminium conductor)"]
[17,4,"2018-07-08T21:45:00",43289.90625,-37.831352641001196,145.26916710279599,"334-338 BAYSWATER ROAD, BAYSWATER NORTH VIC 3153",1201602,"BWR23","Low voltage AC (<1kV)","URBAN"," - luminaires (major road)","single phase","Otherwise started by a distribution system","LBRA only",0.2,"NO FORECAST",0.1,2.0000000000000004E-2,234286,"20190827SPN_01","P/L fire on pole LIS1201602. P/L removed and replaced with new. Cause of failure unknown, Investigation inconclusive and did not determine cause of fire.",null,null," - overhead conductor (bare; copper)"]
[17,5,"2018-07-12T20:19:19",43293.846747685187,-38.253790544350892,146.474494544767,"440 FIRMINS LANE, HAZELWOOD NORTH VIC 3840",2615217,"TGN23","22kV AC","RURAL SHORT"," - insulators","three phase","Otherwise started by a distribution system","HBRA only",1,"NO FORECAST",0.1,0.1,234390,"20180713SPN_01","Fault crew called to fault and small fire at Firmins lane Hazelwood. \nXLPE leads have been rubbing together at the gas switch causing one phase to rub through resulting in a fault to the earth screed of the other phase.  Shutdown organised for a construction crew to replace the leads on TN099 and restore supply.",null,null," - overhead conductor (bare; steel)"]
[17,6,"2018-07-17T14:23:53",43298.599918981483,-37.512086012091594,145.425687993759,"220 CASTELLA ROAD, CASTELLA VIC 3777",1400651,"KLK11","Low voltage AC (<1kV)","RURAL LONG"," - transformer (pole mounted)","single phase","Started by any tree, or part of a tree, falling upon or coming into contact with a distribution system","within electric line construction area",19.8,"NO FORECAST",0.1,1,234509,"20180926SPN_01","Tree branch that had been blown onto the LV bushings of the pole type substation. Supply was not interrupted and all fuses were still in. The fire did not cause any major damage to the customers property majority of the fire was contained within road reserve. The pole while it did have scorch marks on it from the fire appeared to just be cosmetic damage and nothing majorly structural. The tree branch had broken off due to the high winds that had occurred during that day. \nFire observed in the area (approx. 30x8m).",null,null," - overhead conductor (ABC)"]
[17,7,"2018-07-19T21:08:11",43300.880682870367,-38.151553894086099,146.78820643379601,"17 PRINCE STREET, ROSEDALE VIC 3847",5643756,"TGN41","Low voltage AC (<1kV)","RURAL LONG"," - luminaires (major road)","single phase","Otherwise started by a distribution system","LBRA only",0.2,"NO FORECAST",0.1,2.0000000000000004E-2,234530,"20190827SPN_04","P/L fitting has failed and melted. on pole. Failed P/L fitting removed and replaced with new. Cause of failure unknown. Investigation conducted but inconclusive and unable to determine cause of failure.",null,null," - overhead conductor (covered uninsulated)"]
[17,8,"2018-08-01T08:46:00",43313.365277777775,-37.860354013693801,145.37697498438101,"1 WOOLRICH ROAD, OLINDA VIC 3788",1309467,"SFS1","Low voltage AC (<1kV)","RURAL SHORT"," - connection box","single phase","Otherwise started by a distribution system","within electric line construction area",19.8,"NO FORECAST",0.1,1,234714,"20180809SPN_02","The customer was fed via an old private underground service from pole LIS 1309467 which fed directly into their installation. Loose connections in the fused mains box resulted in pole fire only and no ground fire was present. Fault crew replaced the failed fused mains box with a new FOLCB.\nBurn marks on the pole and small pieces of plastic on the ground from the burnt out fused mains box but no evidence of ground fire.",null,null," - overhead conductor (insulated)"]
[17,9,"2018-08-02T00:28:00",43314.019444444442,-38.1241271326722,145.845419942186,"33 HEARN STREET, DROUIN VIC 3818",2704071,"WGL21","Low voltage AC (<1kV)","RURAL LONG"," - lamps (minor road)","single phase","Otherwise started by a distribution system","LBRA only",0.2,"NO FORECAST",0.1,2.0000000000000004E-2,234718,"20180809SPN_04","DOA attended the site in daylight hours. Light had not been fixed and there were very small burn marks on the ground with bits of melted plastic in the vicinity of the burnt areas. Unable to determine cause of street light failure.",null,null,"Service lines"]
[17,10,"2018-08-03T14:21:00",43315.597916666666,-37.603432981384898,145.09478598197001,"1410 PLENTY ROAD, MERNDA VIC 3754",917511,"DRN12","Low voltage AC (<1kV)","URBAN"," - transformer (any other type)","single phase","Started by any person, bird, reptile or other animal coming into contact with a distribution system","HBRA only",1,"NO FORECAST",0.1,0.1,234756,"20180808SPN_03","The cap bank was installed and testing completed by AusNet testers. Installation was then livened, LV fuses closed before crew heard the Sec VT arcing and smoke observed just before the VT caught fire and self extinguished. Testers confirmed all the equipment was wired correctly and it appears to be equipment failure.",null,null," - overhead service conductor (residential)"]
[17,11,"2018-08-04T18:54:00",43316.787499999999,-37.651185731224601,145.01650810849699,"130 COOPER STREET, EPPING VIC 3076",5658165,"EPG23","Low voltage AC (<1kV)","URBAN"," - luminaires (major road)","single phase","Otherwise started by a distribution system","LBRA only",0.2,"NO FORECAST",0.1,2.0000000000000004E-2,234761,"20180808SPN_02","DAO arrived on site to find evidence of a burnt out 150w Street light. The street light was burnt from the top of the structure indicating faulty wiring rather than a blown globe. The light structure itself extends over the road so there was no ground fire to report. The fire was contained to the top of the pole. Fault crew had already attended site the night before but light had not been repaired/replaced as crew did not have spare 150W available at the time.",null,null," - overhead service conductor (commercial / industrial)"]
[17,12,"2018-08-05T20:12:00",43317.841666666667,-37.766094001398692,145.23964899729799,"34 CROYDON ROAD, CROYDON VIC 3136",1203025,"RWN31","22kV AC","RURAL SHORT"," - earth / earthing","three phase","Started by any person, bird, reptile or other animal coming into contact with a distribution system","within area delineated on plan LEGL./16-354",4.5999999999999996,"NO FORECAST",0.1,0.45999999999999996,234762,"20180806SPN_01","A possum short circuited the 22kV overhead conductor to earth on a steel X-arm on a concrete Substation pole. The short circuit caused the LV earth to be damaged at ground level where it was in contact with the earthed concrete pole. There was a small grass fire at the base of the pole of approximately 2 square metres, the fire did not spread, The pole is located in the road reserve, no property was damaged. The Substation that was affected is “Wonga P3 Colman” LIS # 1203025. The attending Fault crew were in the process of repairing damaged LV earth from the possum which caused a short circuit from conductor to steel X-arm on a concrete Substation pole when LEI arrived at site. Attending LEI inspected 3 affected properties along Croydon Rd Warrandyte South and found no evidence of HV injection. Control Room notified customers OK to return to supply upon completion of repairs.",null,null," - overhead service conductor (subdivision / construction)"]
[17,13,"2018-08-07T22:54:00",43319.95416666667,-38.472212022624298,145.94904400517402,"43 TURNER STREET, LEONGATHA VIC 3953",2005194,"LGA22","Low voltage AC (<1kV)","RURAL SHORT"," - luminaires (major road)","single phase","Otherwise started by a distribution system","LBRA only",0.2,"NO FORECAST",0.1,2.0000000000000004E-2,234792,"20180808SPN_01","Attending Fault crew found that the Active was disconnected and the it caught fire in head of light as a result of arching from moisture believed to be in the ballast.",null,null," - overhead service conductor (other)"]
[17,14,"2018-08-15T02:00:00",43327.083333333336,-38.643549982189903,146.492387009662,"50 CLARK ROAD, HEDLEY VIC 3967",573608,"FTR12","22kV AC","RURAL LONG"," - overhead conductor (bare; steel)","single phase","Started by any tree, or part of a tree, falling upon or coming into contact with a distribution system","HBRA only",1,"NO FORECAST",0.1,0.1,234867,"20180820SPN_06","Tree fell over line causing conductor to break and fall to ground igniting fire in span between poles LIS573608 and LIS2608426.\nFire at t/off pole LIS2608424 from suspected conductor clashing as a result of tree twisting crossarm.",null,null," - underground service cable (residential)"]
[17,15,"2018-08-15T09:00:00",43327.375,-38.281811983272597,146.19883899492501,"206 SAVIGES ROAD, THORPDALE VIC 3835",2203664,"MOE21","22kV AC","RURAL SHORT"," - overhead conductor (bare; steel)","three phase","Started by any tree, or part of a tree, falling upon or coming into contact with a distribution system","within area delineated on plan LEGL./16-354",4.5999999999999996,"NO FORECAST",0.1,0.45999999999999996,235039,"20180827SPN_01","Tree fell into and brought down overhead conductors starting a small ground fire.",null,null," - underground service cable (commercial / industrial)"]
[17,16,"2018-08-20T10:47:00",43332.449305555558,-37.8672363188982,145.23605519494501,"309 STUD ROAD, WANTIRNA SOUTH VIC 3152",1224715,"BRA21","Low voltage AC (<1kV)","URBAN"," - luminaires (major road)","single phase","Otherwise started by a distribution system","LBRA only",0.2,"NO FORECAST",0.1,2.0000000000000004E-2,234965,"20180820SPN_01","Internal light fitting fault.\nIt would appear that the top cover dropped off some time ago leaving the internal control gear and wires exposed, causing the wiring to deteriorate and the PE base to fill up with water, Over time this caused a short to the body of the lantern livening up the concrete pole.",null,null," - underground service cable (subdivision / construction)"]
[17,17,"2018-08-28T10:01:00",43340.417361111111,-37.804275990039102,147.49043999131698,"85 WINDMILL LANE, LINDENOW VIC 3865",1608131,"BDL44","Low voltage AC (<1kV)","RURAL LONG"," - connection box","single phase","Otherwise started by a distribution system","LBRA only",0.2,"NO FORECAST",0.1,{"$f":"IF(OR(P54=\"\",R54=\"\"),\"\",IF(AND(O54=\"within electric line construction area\",Q54=\"No forecast\"),1,P54*R54))","v":2.0000000000000004E-2},"E0004360","20181109SPN_05","Crew attended site and found LV Krone box had melted and a small burnt area was evident at the base of the pole. Fire was out when crew arrived. Isolated supply and replaced Krone box.",null,null," - underground service cable (other)"]
[17,18,"2018-08-29T18:34:00",43341.773611111108,-37.698171676592004,145.16179870044499,"40 LEANE DRIVE, ELTHAM VIC 3095",5645776,"ELM15","22kV AC","RURAL SHORT"," - transformer (kiosk mounted)","three phase","Otherwise started by a distribution system","LBRA only",0.2,"NO FORECAST",0.1,2.0000000000000004E-2,"E0003348","20181116SPN_03","Kiosk transformer failed as a result of failed/damaged connections leading to insulation heating up and subsequently catching fire.",null,null,"Underground cables"]
[17,19,"2018-08-30T17:57:00",43342.747916666667,-38.1993630090168,146.52554798530099,"19 GARIBALDI STREET, TRARALGON VIC 3844",2603531,"TGN43","Low voltage AC (<1kV)","URBAN"," - connection box","three phase","Otherwise started by a distribution system","LBRA only",0.2,"NO FORECAST",0.1,2.0000000000000004E-2,235112,"20180903SPN_06","The middle phase of the FSD unit has overheated and melted. Cause could not be determined. Melted plastic observed at the base of the pole but no evidence of fire",null,null," - underground cable"]
[17,20,"2018-10-03T17:01:58",43376.709699074076,-38.0703159909609,145.49406702379699,"RACECOURSE ROAD, PAKENHAM VIC 3810",503172,"PHM21","22kV AC","URBAN"," - arc suppresion coil","three phase","Started by any other thing forming part of or coming into contact with a distribution system","LBRA only",0.2,"LOW-MODERATE",0.2,4.0000000000000008E-2,"E0002634","20181005SPN_01","Whilst closing the No. 2 Cap Bank and it's No2 Step Switch, the cap bank CT failured resulting in fire at the cap bank tripping both the CB and Step Switch on Earth Fault.\nAsset failure report not available",null,null," - underground communications cable"]
[17,21,"2018-10-19T10:55:00",43392.454861111109,-37.879229995226495,147.98751802150801,"17 CHURCH STREET, LAKES ENTRANCE VIC 3909",1901962,"BDL41","22kV AC","RURAL LONG"," - fuse (EDO fuse)","three phase","Otherwise started by a distribution system","LBRA only",0.2,"LOW-MODERATE",0.2,4.0000000000000008E-2,"E0003359","20181113SPN_01","Blown EDO fuse appears to have been candling. No fire",null,null,"Poles"]
[17,22,"2018-10-19T21:13:36",43392.884444444448,-37.682804005997596,145.01962599318,"48 HEYINGTON AVENUE, THOMASTOWN VIC 3074",910335,"TT5","22kV AC","URBAN"," - switch (any other type)","three phase","Otherwise started by a distribution system","LBRA only",0.2,"LOW-MODERATE",0.2,4.0000000000000008E-2,"E0004496","20181112SPN_02","Investigation conducted but inconclusive, cause of fire unknown and no failed assets involved.\nFeeder re-close occurred and VicFire reported a pole fire spreading to trees. Fault crew dispatched and, upon arrival, identified scorch marks on the ground near switch pole LIS910335. Fire fighters on site and informed fault crew there was an explosion at the pole followed by a small fire on the ground. No signs of any animal or vegetation in the vicinity that could be attributed to the failure. Pole and switch inspected and no visible damage or cause identified that would account for the fire.",null,null," - pole (concrete)"]
[17,23,"2018-10-22T13:30:00",43395.5625,-37.543091992406794,144.97858399583501,"910 DONNYBROOK ROAD, DONNYBROOK VIC 3064",932480,"KLO14","22kV AC","RURAL LONG"," - fuse (boric acid)","single phase","Otherwise started by a distribution system","within area delineated on plan LEGL./16-354",4.5999999999999996,"LOW-MODERATE",0.2,0.91999999999999993,"E0003461","20181113SPN_02","Fault crew believe conductor may have been hit by an excavator resulting in a mid span break of the O/H conductors and one fuse operating and another candling. 10m of conductor was replaced on the phase that fell to the ground and the other phase was repaired using a splice. There are no reported injuries or damage and the ground clearance of the O/H conductor was deemed to be sufficient/compliant.\n\nDetails of the excavator and the operator are not available as the excavator had left the site prior to the fault crew arriving.",null,null," - pole (steel)"]
[17,24,"2018-10-24T15:22:12",43397.640416666669,-37.877149016535398,145.39943598193901,"26 BAYNES PARK ROAD, MONBULK VIC 3793",1321322,"BGE11","Low voltage AC (<1kV)","RURAL SHORT"," - connection box","three phase","Otherwise started by a distribution system","within electric line construction area",19.8,"LOW-MODERATE",0.2,3.9600000000000004,"E0004372","20181109SPN_04","FOLCB has failed internally possibly as a result of poor neutral connections. Failed FOLCB removed and replaced with new, damaged dropper cables replaced and re-terminated.",null,null," - pole (wood)"]
[17,25,"2018-10-31T12:40:00",43404.527777777781,-37.699582022391503,145.10268601873199,"1 KALPARRIN AVENUE, GREENSBOROUGH VIC 3088",903803,"WT5","Low voltage AC (<1kV)","URBAN"," - overhead conductor (bare; all aluminium conductor)","three phase","Started by any other thing forming part of or coming into contact with a distribution system","LBRA only",0.2,"LOW-MODERATE",0.2,4.0000000000000008E-2,"E0004005","20181101SPN_01","Unknown truck contacted and brought down O/H LV lines resulting in ground fire.\nTruck and driver details unknown and not available. It is not known what the truck was doing when it contacted the O/H conductor",null,null,"Crossarms"]
[17,26,"2018-11-01T08:04:00",43405.336111111108,-38.612563005593202,146.65942599655099,"RANKIN STREET, ALBERTON VIC 3971",2608518,"FTR23","Low voltage AC (<1kV)","RURAL LONG"," - connection box","three phase","Otherwise started by a distribution system","HBRA only",1,"HIGH",0.5,0.5,"E0004070","20190827SPN_02","Fused Mains box has burnt and melted on pole LIS2608518. Investigation conducted but inconclusive, unable to determine cause of failure.",null,null," - crossarm (wood)"]
[17,27,"2018-11-02T02:00:00",43406.083333333336,-37.402440000474499,144.97698697589701,"11 NEMOYA COURT, WALLAN VIC 3756",912718,"KLO24","22kV AC","RURAL SHORT"," - fuse (EDO fuse)","single phase","Otherwise started by a distribution system","LBRA only",0.2,"HIGH",0.5,0.1,"E0004097","20181107SPN_01","Candled HV EDO fuse",null,null," - crossarm (steel)"]
[17,28,"2018-11-04T17:59:34",43408.749699074076,-38.045096992792701,147.031394975788,"BENELONG, 90 HOLTS LANE, BUNDALAGUAH VIC 3851",2500388,"SLE32","22kV AC","RURAL SHORT"," - overhead conductor (bare; aluminium core steel reinforced)","three phase","Started by any tree, or part of a tree, falling upon or coming into contact with a distribution system","LBRA only",0.2,"LOW-MODERATE",0.2,4.0000000000000008E-2,"E0004173","20181107SPN_03","Tree stump visible when site attended for investigation but tree was missing from site. Remaining debris from the tree indicates it had fallen over towards the HV line in between CAM's 2500389 and 2500388, making contact with the OH conductors.\nSingle tree failure impacted line. Fire started, burnt road reserve edge and up to an irrigation ditch, linear strip. [Tree and all debris had been cleared up prior to inspection].",null,null," - crossarm (other)"]
[17,29,"2018-11-06T15:53:00",43410.661805555559,-37.797559995108998,145.239649021964,"17 PANFIELD AVENUE, RINGWOOD VIC 3134",1209065,"RWN33","Low voltage AC (<1kV)","URBAN"," - connection box","three phase","Otherwise started by a distribution system","LBRA only",0.2,"LOW-MODERATE",0.2,4.0000000000000008E-2,"E0004241","20190110SPN_01","Krone box had melted and caused burnt plastic to fall onto the ground. No damage to any customers property and no ground fire present. All damage was caused in road reserve. Fire was cause by a fault in the Krone box due to severe weather and rain earlier on during the day",null,null,"Overhead assets"]
[17,30,"2018-11-07T17:15:00",43411.71875,-38.635415997854494,146.112483020241,"778 WHITELAWS TRACK, BUFFALO VIC 3958",2024579,"FTR21","22kV AC","RURAL LONG"," - fuse (EDO fuse)","three phase","Otherwise started by a distribution system","HBRA only",1,"LOW-MODERATE",0.2,0.2,"E0004292","20181205SPN_02","Candling fuse.",null,null," - capacity balancing units"]
[17,31,"2018-11-08T11:15:00",43412.46875,-37.825341996362404,147.57808803203201,"320 DOCKERTYS ROAD, WY YUNG VIC 3875",1603550,"BDL44","Low voltage AC (<1kV)","RURAL LONG"," - connection box","two phase","Otherwise started by a distribution system","within area delineated on plan LEGL./16-354",4.5999999999999996,"LOW-MODERATE",0.2,0.91999999999999993,"E0004423","20181109SPN_02","Degradation of Krone Box",null,null," - connector / termination"]
[17,32,"2018-11-08T14:04:00",43412.586111111108,-36.937443692219105,145.419518757644,"644 PONKEEN CREEK ROAD, TARCOMBE VIC 3666",3902809,"BN1","12.7kV AC (SWER)","RURAL LONG"," - fuse (EDO fuse)","single wire earth return (SWER)","Started by lightning striking a distribution system or a part of a distribution system ","within area delineated on plan LEGL./16-354",4.5999999999999996,"LOW-MODERATE",0.2,0.91999999999999993,"E0004540","20181116SPN_01","The EDO fuse operation was triggered by lightning in the area. The hung up of the fuse is due to  accumulation of dry mud at the bottom of the fuse by insect/wasp. When the fuse link blows the tension is unable to be released causing the spring and the tube to hang up.",null,null," - dropper / bridge"]
[17,33,"2018-11-09T22:24:00",43413.933333333334,-38.022076000939002,146.66944600469699,"2439 TRARALGON-MAFFRA ROAD, COWWARR VIC 3857",2601800,"TGN31","22kV AC","RURAL LONG"," - fuse (EDO fuse)","three phase","Otherwise started by a distribution system","HBRA only",1,"LOW-MODERATE",0.2,0.2,"E0004494","20181112SPN_01","Candling EDO fuse",null,null," - guy wire"]
[17,34,"2018-11-15T13:45:09",43419.573020833333,-37.922174007303497,145.47561400696,"3 UPPER GRIEVE ROAD, AVONSLEIGH VIC 3782",420243,"BGE22","22kV AC","RURAL SHORT"," - fuse (EDO fuse)","three phase","Otherwise started by a distribution system","LBRA only",0.2,"LOW-MODERATE",0.2,4.0000000000000008E-2,"E0004784","20181115SPN_01","candling EDO fuse. No ground fire.",null,null," - insulator tie wires / connections"]
[17,35,"2018-11-16T21:56:00",43420.913888888892,-38.197318985911899,146.52525801451802,"45 LAFAYETTE STREET, TRARALGON VIC 3844",2603888,"TGN43","Low voltage AC (<1kV)","URBAN"," - luminaires (minor road)","single phase","Otherwise started by a distribution system","LBRA only",0.2,"LOW-MODERATE",0.2,4.0000000000000008E-2,"E0004855","20181205SPN_03","This is an older public light where the igniter or starter has failed causing a head fire. Failed head has been removed and replaced it with new.",null,null," - insulators"]
[17,36,"2018-12-01T23:45:00",43435.989583333336,-38.016921714489399,145.31823874041402,"56 RYELANDS DRIVE, NARRE WARREN VIC 3805",5693444,"NRN13","Low voltage AC (<1kV)","URBAN"," - luminaires (minor road)","single phase","Otherwise started by a distribution system","LBRA only",0.2,"HIGH",0.5,0.1,"E0006173","20181214SPN_05","Cause of street light failure not known. Light fitting replaced.\nStreet light head fire only and no ground fire present",null,null," - tower"]
[17,37,"2018-12-02T10:40:00",43436.444444444445,-37.745395621767095,145.26232000777901,"1-11 WALKER ROAD, WONGA PARK VIC 3115",1203478,"CPK11","22kV AC","URBAN"," - overhead conductor (bare; all aluminium conductor)","single phase","Started by any tree, or part of a tree, falling upon or coming into contact with a distribution system","within area delineated on plan LEGL./16-354",4.5999999999999996,"LOW-MODERATE",0.2,0.91999999999999993,"E0005618","20181205SPN_01","Branch blew out of tall Eucalyptus on opposite side of road approx. 10m away and landed on lines. A very small fire started below.",null,null," - traction lines"]
[17,38,"2018-12-03T14:48:00",43437.616666666669,-36.874907007061502,145.61356298436201,"1589 EUROA-MANSFIELD ROAD, GOORAM VIC 3666",3904896,"BN1","22kV AC","RURAL LONG"," - fuse (boric acid)","single phase","Otherwise started by a distribution system","within area delineated on plan LEGL./16-354",4.5999999999999996,"HIGH",0.5,{"$f":"IF(OR(P75=\"\",R75=\"\"),\"\",IF(AND(O75=\"within electric line construction area\",Q75=\"No forecast\"),1,P75*R75))","v":2.2999999999999998},"E0005715","20181205SPN_04","Candling BA fuse on s/stn.",null,null,"Underground assets"]
[{"$f":"COUNTA(C76:O76,Q76,T76:V76)","v":17},39,"2018-12-05T07:05:00",43439.295138888891,-36.355468984597003,146.29649897547,"59 RANGEVIEW AVENUE, WANGARATTA VIC 3677",5107251,"WN4","22kV AC","RURAL SHORT"," - fuse (powder filled)","three phase","Otherwise started by a distribution system","LBRA only",{"$f":"IF(O76=\"\",\"\",IF(O76=\"LBRA only\",0.2,IF(O76=\"HBRA only\",1,IF(O76=\"within electric line construction area\",19.8,IF(O76=\"within area delineated on plan LEGL./16-354\",4.6,\"\")))))","v":0.2},"LOW-MODERATE",{"$f":"IF(Q76=\"\",\"\",IF(Q76=\"No forecast\",0.1,IF(Q76=\"Low-moderate\",0.2,IF(Q76=\"High\",0.5,IF(Q76=\"Very high\",1,IF(Q76=\"Severe\",2,IF(Q76=\"Extreme\",3.5,5)))))))","v":0.2},4.0000000000000008E-2,"E0005799","20181205SPN_06","Candled HV EDO Fuse on s/stn pole. No evidence of ground fire",null,null," - LV pillar"]
[17,40,"2018-12-07T16:22:28",43441.682268518518,-37.049891482885492,146.080677415613,"173-175 HIGH STREET, MANSFIELD VIC 3722",3916716,"MSD4","Low voltage AC (<1kV)","RURAL LONG"," - overhead service conductor (residential)","two phase","Started by any tree, or part of a tree, falling upon or coming into contact with a distribution system","within area delineated on plan LEGL./16-354",4.5999999999999996,"HIGH",0.5,2.2999999999999998,"E0006056","20181210SPN_01","branch of an adjacent red gum outside clearance broke and fell through overhead service, bringing conductors to ground amongst grassy area. The limb also glanced service pole 3916716 and decked a service line resulting in a  ground fire.\nRed gums are known for limb-shedding/bifurcation.  In this event the red gum was 6 meters away from the insulated service line when the branch failed at the point of attachment. There are no externally visible signs of decay so this failure could not have been predicted.\n\nPole inspected and cleared for service. Push test passed before the overhead service line replaced the following day.  The pole has no outstanding maintenance items.",null,null," - services pit"]
[17,41,"2018-12-09T12:16:00",43443.511111111111,-38.1077690028253,145.850183981318,"180 MAIN NEERIM ROAD, DROUIN VIC 3818",2717457,"WGL21","22kV AC","RURAL LONG"," - fuse (EDO fuse)","single phase","Otherwise started by a distribution system","HBRA only",1,"LOW-MODERATE",0.2,0.2,"E0006073","20181210SPN_02","Candling HV fuse on pole s/stn.",null,null,"Transformers"]
[17,42,"2018-12-11T03:58:35",43445.165682870371,-37.658834976822497,145.50220798387801,"45 MCGRETTONS ROAD, HEALESVILLE VIC 3777",1403502,"LDL23","Low voltage AC (<1kV)","RURAL LONG"," - overhead conductor (bare; all aluminium conductor)","three phase","Started by any tree, or part of a tree, falling upon or coming into contact with a distribution system","within area delineated on plan LEGL./16-354",4.5999999999999996,"LOW-MODERATE",0.2,0.91999999999999993,"E0006156","20181214SPN_02","Large pine (DBH over 1m) has failed in ground falling across road and contacting and bringing down O/H HV and LV conductors resulting in a ground fire is approx. 0.5sqm in size. Fire occurred in road reserve and did not do any damage to any residential property. No one was injured in this event. Fire was out on arrival. \n\nEvidence of decay on line side of roots but only visible post failure. Other trees in row appear in good health. Small grass fire at base of pole. Grass fairly green with low fuel load. Fire burnt dead tufts of oat grass\n\nLine repaired and supply restored.",null,null," - transformer (pole mounted)"]
[17,43,"2018-12-12T16:43:00",43446.696527777778,-37.669628020534894,145.136477969971,"49 HILLMARTIN LANE, DIAMOND CREEK VIC 3089",926857,"ELM12","Low voltage AC (<1kV)","URBAN"," - underground service cable (residential)","two phase","Otherwise started by a distribution system","within area delineated on plan LEGL./16-354",4.5999999999999996,"HIGH",0.5,2.2999999999999998,"E0006263","20181214SPN_04","Cause of fire was poor connection of tape on the active. Due to the dry nature of the area this resulted in a fire starting.",null,null," - transformer (kiosk mounted)"]
[17,44,"2018-12-13T13:27:00",43447.560416666667,-38.090951025501795,145.77908897674399,"60 PRINCES WAY, LONGWARRY NORTH VIC 3816",2708577,"WGL12","22kV AC","RURAL LONG"," - fuse (EDO fuse)","single phase","Otherwise started by a distribution system","HBRA only",1,"LOW-MODERATE",0.2,0.2,"E0006347","20181214SPN_01","Candling due to suspected moisture ingress/weathering",null,null," - transformer (ground outdoor mounted)"]
[17,45,"2018-12-13T20:44:00",43447.863888888889,-36.134228976805801,147.00867801777599,"BONEGILLA MIGRANT CENTRE, 82 BONEGILLA ROAD, BONEGILLA VIC 3691",5209671,"WOTS25","22kV AC","RURAL SHORT"," - fuse (boric acid)","three phase","Otherwise started by a distribution system","within area delineated on plan LEGL./16-354",4.5999999999999996,"LOW-MODERATE",0.2,0.91999999999999993,"E0006377","20181214SPN_03","SUSPECTED LIGHTNING STRIKE",null,null," - transformer (indoor chamber mounted)"]
[17,46,"2018-12-14T09:33:00",43448.397916666669,-38.094470000772098,145.72669000299101,"33 ABECKETT ROAD, BUNYIP VIC 3815",522029,"WGL12","22kV AC","RURAL LONG"," - fuse (EDO fuse)","three phase","Otherwise started by a distribution system","HBRA only",1,"LOW-MODERATE",0.2,0.2,"E0006409","20181219SPN_01","Unable to establish root cause",null,null," - transformer (any other type)"]
[17,47,"2018-12-17T06:34:00",43451.273611111108,-38.314520987373704,145.90880403051401,"172 FERNDALE-STRZELECKI ROAD, FERNDALE VIC 3821",2005124,"LGA24","22kV AC","RURAL SHORT"," - fuse (EDO fuse)","single phase","Otherwise started by a distribution system","HBRA only",1,"LOW-MODERATE",0.2,0.2,"E0007026","20190111SPN_05","Candled EDO fuse. Replaced fuse and restored supply.",null,null," - measurement transformer (current transformer)"]
[17,48,"2018-12-17T10:35:00",43451.440972222219,-38.515479814021596,145.98274965828199,"275 NERRENA HALL ROAD, NERRENA VIC 3953",2001171,"LGA14","12.7kV AC (SWER)","RURAL LONG"," - fuse (EDO fuse)","single wire earth return (SWER)","Otherwise started by a distribution system","HBRA only",1,"LOW-MODERATE",0.2,0.2,"E0006540","20181218SPN_01","Animal induced - Possum on line",null,null," - measurement transformer (voltage transformer)"]
[17,49,"2018-12-18T01:21:00",43452.056250000001,-36.320614169676603,146.89913899012399,"16 FLYNNS LANE, OSBORNES FLAT VIC 3691",5626316,"WOTS11","12.7kV AC (SWER)","RURAL LONG"," - fuse (any other type)","single wire earth return (SWER)","Otherwise started by a distribution system","within electric line construction area",19.8,"LOW-MODERATE",0.2,3.9600000000000004,"E0006713","20181218SPN_02","Degraded internal connection. It appears the striker pin did not operate to let the Boric Acid fuse fall out.",null,null," - measurement transformer (capacitive voltage transformer)"]
[17,50,"2018-12-18T06:00:00",43452.25,-36.390211402065702,146.52409138558801,"32 DICKENS ROAD, EVERTON UPPER VIC 3678",4501721,"WN5","12.7kV AC (SWER)","RURAL LONG"," - fuse (boric acid)","single wire earth return (SWER)","Otherwise started by a distribution system","within area delineated on plan LEGL./16-354",4.5999999999999996,"LOW-MODERATE",0.2,0.91999999999999993,"E0006717","20181218SPN_03","HV fuse candled. It appears the striker pin may not have operated to drop the Boric Acid fuse out. There was no evidence of ground fire.",null,null,"Fuses and switchgear"]
[17,51,"2018-12-19T19:32:04",43453.813935185186,-37.704751648694199,145.160343462349,"66 BEARD STREET, ELTHAM VIC 3095",918697,"ELM13","Low voltage AC (<1kV)","URBAN"," - pole (wood)","three phase","Otherwise started by a distribution system","LBRA only",0.2,"LOW-MODERATE",0.2,4.0000000000000008E-2,"E0006823","20181220SPN_01","white phase fused isol appears to have burnt at the 'U' bolt resulting in a small fire at base of pole",null,null," - fuse (boric acid)"]
[17,52,"2018-12-20T17:15:00",43454.71875,-36.229400792401798,146.419738368379,"168 ROBBINS ROAD, BORALMA VIC 3682",5105160,"WN3","12.7kV AC (SWER)","RURAL LONG"," - fuse (EDO fuse)","single wire earth return (SWER)","Otherwise started by a distribution system","within area delineated on plan LEGL./16-354",4.5999999999999996,"HIGH",0.5,2.2999999999999998,"E0006941","20181221SPN_01","Suspected damage due to weather - lightning",null,null," - fuse (EDO fuse)"]
[17,53,"2018-12-22T18:04:33",43456.753159722219,-37.209379989338196,145.23683498537702,"775 KING PARROT CREEK ROAD, STRATH CREEK VIC 3658",4704598,"SMR14","22kV AC","RURAL LONG"," - insulators","three phase","Started by any person, bird, reptile or other animal coming into contact with a distribution system","within area delineated on plan LEGL./16-354",4.5999999999999996,"HIGH",0.5,2.2999999999999998,"E0007046","20190110SPN_03","Animal/bird - magpie caused grass fire",null,null," - fuse (Fault Tamer)"]
[17,54,"2018-12-27T20:34:00",43461.856944444444,-37.702998384435602,145.16411106920202,"1320 MAIN ROAD, ELTHAM VIC 3095",928838,"ELM13","Low voltage AC (<1kV)","URBAN"," - connection box","three phase","Otherwise started by a distribution system","LBRA only",0.2,"VERY HIGH",1,0.2,"E0007097","20190111SPN_03","FOLCB on Pole LIS928838 had caught fire and subsequently melted. There was no structural damage to the pole, only slight cosmetic damage where the fire had scorched it. As a result of the fire the remains of the FOLCB had melted and fell onto the ground in scattered pieces. There was a small ground fire as a consequence approx. 20cm by 10cm in length. The cause of the fire was not load related as the overhead service was still in tact (2x25mm O/H service. It appears as though the fire had started via a loose connection and high humidity which led to a spark ignited inside the FOLCB. No damage to the customers property occurred. All damage was located in road reserve.",null,null," - fuse (powder filled)"]
[17,55,"2018-12-29T20:16:49",43463.845011574071,-38.194497975528698,146.54484199632,"14 PETERKIN STREET, TRARALGON VIC 3844",2604877,"TGN42","22kV AC","URBAN"," - connector / termination","three phase","Otherwise started by a distribution system","LBRA only",0.2,"HIGH",0.5,0.1,"E0007157","20190111SPN_07","Suspected drizzle rain after the hot and dry days caused possum proofing to catch fire.",null,null," - fuse (any other type)"]
[17,56,"2018-12-29T21:21:00",43463.88958333333,-38.164617004274902,145.90731901628303,"27 CAMELOT COURT, WARRAGUL VIC 3820",2720623,"WGL11","22kV AC","RURAL SHORT"," - fuse (boric acid)","three phase","Otherwise started by a distribution system","LBRA only",0.2,"HIGH",0.5,0.1,"E0007156","20190111SPN_06","Fault Crew attended and found a magpie had shorted across the BA Unit causing the fuse to candle.\nCrew removed the bird and replaced the fuse.",null,null," - circuit breaker"]
[17,57,"2019-01-04T15:00:00",43469.625,-37.699695094613702,145.15878159601502,"55 ZIG ZAG ROAD, ELTHAM VIC 3095",918744,"ELM15","22kV AC","RURAL SHORT"," - overhead conductor (bare; all aluminium conductor)","three phase","Started by any tree, or part of a tree, falling upon or coming into contact with a distribution system","LBRA only",0.2,"SEVERE",2,0.4,"E0007238","20190111SPN_09","A small branch appears to have broken from the upper canopy of the tree and contacted o/h conductors. The branch appears to have smouldered on the lines and fallen to the ground which may have started a small grass fire.\n\nThe tree in question was a Council owned Eucalyptus situated 4m beside the nearest conductor in LBRA Declared (Council responsibility). A very small branch failed due to strong winds and landed on the HV conductors and the resultant smouldering is believed to be the cause of a 2m sq ground fire.",null,null," - switch (disconnector/isolator)"]
[17,58,"2019-01-05T23:27:44",43470.977592592593,-38.525800983323194,146.59828400179401,"437 BOLGERS ROAD, DEVON NORTH VIC 3971",2624660,"FTR12","22kV AC","RURAL LONG"," - fuse (boric acid)","three phase","Otherwise started by a distribution system","HBRA only",1,"LOW-MODERATE",0.2,0.2,"E0007243","20190108SPN_02","fuse candling",null,null," - switch (earth)"]
[17,59,"2019-01-09T15:01:00",43474.625694444447,-38.117795006653502,145.26738301700701,"39-45 CYRIL BEECHEY LANE, CRANBOURNE VIC 3977",509840,"CRE32","22kV AC","URBAN"," - insulators","three phase","Otherwise started by a distribution system","LBRA only",0.2,"LOW-MODERATE",0.2,4.0000000000000008E-2,"E0007571","20190111SPN_04","Suspected 22kV insulator tracking through a pole stay rod resulting in pole top fire and failure of HV Strain structure, No evidence of ground fire.",null,null," - switch (FuseSaver)"]
[17,60,"2019-01-10T17:02:00",43475.709722222222,-37.4798580067364,145.27449400968402,"14 MARGARET STREET, KINGLAKE WEST VIC 3757",1411055,"KLK21","22kV AC","RURAL SHORT"," - fuse (EDO fuse)","three phase","Otherwise started by a distribution system","within area delineated on plan LEGL./16-354",4.5999999999999996,"HIGH",0.5,2.2999999999999998,"E0007627","20190111SPN_02","22kV EDO fuse is suspected to have hung-up and candled. There was no evidence of ground fire",null,null," - switch (any other type)"]
[17,61,"2019-01-12T18:22:00",43477.765277777777,-38.185591406483496,145.662264941621,"5 HUMPHRIES ROAD, CATANI VIC 3981",513501,"LLG11","22kV AC","RURAL SHORT"," - overhead conductor (bare; steel)","three phase","Started by any other thing forming part of or coming into contact with a distribution system","within area delineated on plan LEGL./16-354",4.5999999999999996,"HIGH",0.5,2.2999999999999998,"E0007738","20190115SPN_03","Tractor contacted single phase 22kV O/H conductors between Cam Poles #513501 & # 513508 while moving bales of hay across his paddock. 2 small grass fires resulted (which was put out by the customer) measuring 1.5x1.5m and 1mx1m (6.25m sq total)\n\nUpon investigation, the height of the HV conductors where incident occurred was approximately 4.5m. No fuses or recloses occurred when tractor came into contact with HV. There was no damage to customer’s tractor or property other than the small grass fire on his land. Conductors repaired and restrung to approx. 6.3m to provide additional ground clearance",null,null,"SCADA, network control and protection systems"]
[17,62,"2019-01-13T21:20:00",43478.888888888891,-36.258839011497301,147.09225801016703,"MURRAY VALLEY HIGHWAY, HUON 3695",5214084,"WOTS13","22kV AC","RURAL LONG"," - overhead conductor (bare; all aluminium conductor)","three phase","Started by any person, bird, reptile or other animal coming into contact with a distribution system","within area delineated on plan LEGL./16-354",4.5999999999999996,"VERY HIGH",1,4.5999999999999996,"E0007830","20190114SPN_01","Found 2 dead magpies at base of pole and center phase isolator from switch #601495 for the tee off conductors had part of the top shed of porcelain missing and flash marks evident.",null,null," - audio frequency load controller (AFLC)"]
[17,63,"2019-01-15T15:35:00",43480.649305555555,-37.857046997952395,146.992650002136,"47 MORGANS ROAD, BOISDALE VIC 3860",2513039,"MFA21","Low voltage AC (<1kV)","RURAL LONG"," - switch (disconnector/isolator)","three phase","Otherwise started by a distribution system","LBRA only",0.2,"VERY HIGH",1,0.2,"E0007916","20190115SPN_06","Degraded hot connection",null,null," - arc suppresion coil"]
[17,64,"2019-01-16T15:11:00",43481.632638888892,-38.452656038635297,145.739460418193,"490 ANDERSONS INLET ROAD, BENA VIC 3946",2008210,"LGA23","22kV AC","RURAL LONG"," - pole (wood)","three phase","Otherwise started by a distribution system","HBRA only",1,"HIGH",0.5,0.5,"E0008129","20190117SPN_01","The tie on the insulator has failed, possibly due to a lightning strike based on evidence of black charring on the insulator. The conductor has dropped and come in to contact with the pole, burning through the pole causing the top section to fail and fall to ground resulting in a small grass fire.",null,null," - automatic circuit recloser (ACR)"]
[17,65,"2019-01-16T22:05:00",43481.920138888891,-38.026578994015303,145.60389399648201,"40 MORTIMER ROAD, TYNONG NORTH VIC 3813",524311,"PHM33","22kV AC","RURAL LONG"," - fuse (EDO fuse)","single phase","Otherwise started by a distribution system","HBRA only",1,"HIGH",0.5,0.5,"E0008495","20190125SPN_01","crew arrived on site to find a candled EDO fuse. Fuse was replaced and supply restored",null,null," - communications linear assets"]
[17,66,"2019-01-17T10:46:00",43482.448611111111,-36.968969014326603,147.604514025524,"895 OMEO VALLEY ROAD, OMEO VIC 3898",1605874,"BDL8","22kV AC","RURAL LONG"," - fuse (EDO fuse)","three phase","Started by lightning striking a distribution system or a part of a distribution system ","within area delineated on plan LEGL./16-354",4.5999999999999996,"HIGH",0.5,2.2999999999999998,"E0008180","20190117SPN_03","Most probable cause is lightning strike (as indicated by evidence found on site i.e. black patches on concrete pole and exit marks etc.).",null,null," - communications network assets"]
[17,67,"2019-01-21T05:15:00",43486.21875,-37.700307981461798,145.09740399851299,"14 Glamis st, Greensborough",903905,"WT5","22kV AC","URBAN"," - pole (wood)","three phase","Otherwise started by a distribution system","LBRA only",0.2,"HIGH",0.5,0.1,"E0008305","20190121SPN_01","MFB reported an explosion from pole and small fire on ground next to base of sub pole. Fire extinguished before fault crew arrived. Investigation conducted and no damage or fault could be identified that could be attributed to the reported fire. Investigation inconclusive and no cause found.",null,null," - communications site infrastructure"]
[17,68,"2019-01-21T18:21:00",43486.76458333333,-37.669008019667395,145.16195097221799,"1 LUSCOMBE DRIVE, DIAMOND CREEK VIC 3089",926985,"ELM15","Low voltage AC (<1kV)","RURAL SHORT"," - connection box","three phase","Otherwise started by a distribution system","LBRA only",0.2,"HIGH",0.5,0.1,"E0008397","20190122SPN_01","The sheeting on the leads coming out from the supply transformer to the TX ISOL’s Krone box was melted and the spillage of the plastic fell to ground. Possible Overloaded TX / TX leads or loose terminals in the TX ISOL Krone box.",null,null," - field devices"]
[17,69,"2019-01-24T19:18:00",43489.804166666669,-37.886034018633296,145.37004101026901,"DANDENONG RANGES NATIONAL PARK, 70 MONBULK ROAD, SHERBROOKE VIC 3789",1305203,"BGE11","Low voltage AC (<1kV)","RURAL SHORT"," - overhead conductor (ABC)","three phase","Started by any tree, or part of a tree, falling upon or coming into contact with a distribution system","within electric line construction area",19.8,"VERY HIGH",1,19.8,"E0008623","20190125SPN_03","A branch has broken off a very large healthy Mt Ash tree contacting and bringing down 2 bays of LV ABC as it fell to ground resulting in a small 1m x 1m square fire. The tree was not identified as being hazardous",null,null," - local network wiring assets"]
[17,70,"2019-01-25T15:25:00",43490.642361111109,-38.178585008600798,146.27611999506001,"21 DINWOODIE DRIVE, NEWBOROUGH VIC 3825",2207877,"MOE31","22kV AC","RURAL LONG"," - fuse (powder filled)","three phase","Otherwise started by a distribution system","LBRA only",0.2,"SEVERE",2,{"$f":"IF(OR(P107=\"\",R107=\"\"),\"\",IF(AND(O107=\"within electric line construction area\",Q107=\"No forecast\"),1,P107*R107))","v":0.4},"E0008722","20190125SPN_05","Candled fuse. Fuse replaced and supply restored",null,null," - master station assets"]
[17,71,"2019-01-26T22:35:00",43491.940972222219,-37.800559008646403,145.32936197097902,"214 CAMBRIDGE ROAD, KILSYTH VIC 3137",1001084,"CYN33","22kV AC","URBAN"," - automatic circuit recloser (ACR)","three phase","Started by any person, bird, reptile or other animal coming into contact with a distribution system","LBRA only",0.2,"HIGH",0.5,0.1,"E0008754","20190130SPN_02","Line Crews found Possum had got on top of ACR LD070. Charring between on pole approx.1m between ACR. Scorched earth at base of ACR and burnt shrubs outside the property approx. 1.5m long x 250mm wide. MFB put out small fire in shrubs next to the property fence prior to the fault crew's arrival. Fault crew made safe and carried out repairs",null,null," - neutral earthing resistor"]
[17,72,"2019-01-27T03:00:05",43492.125057870369,-36.273967017412296,147.05751102438799,"334 GENTLE ROAD, GUNDOWRING VIC 3691",5201242,"WOTS11","Low voltage AC (<1kV)","RURAL LONG"," - overhead service conductor (residential)","two phase","Otherwise started by a distribution system","within area delineated on plan LEGL./16-354",4.5999999999999996,"HIGH",0.5,2.2999999999999998,"E0008757","20190128SPN_01","Customer drawing 40 amps of load regularly. Appears connections in FOLCB on pole have dried and deteriorated resulting in the failure of the box",null,null," - oil-filled circuit recloser (OCR)"]
[17,73,"2019-01-28T09:57:00",43493.414583333331,-37.878379004330895,147.95815100938501,"KALIMNA HOTEL, 21 KALIMNA JETTY ROAD, KALIMNA VIC 3909",1901592,"BDL6","22kV AC","RURAL SHORT"," - fuse (EDO fuse)","three phase","Otherwise started by a distribution system","within area delineated on plan LEGL./16-354",4.5999999999999996,"HIGH",0.5,2.2999999999999998,"E0008761","20190130SPN_04","Candled EDO  fuse, no evidence of ground fire. Fuse replaced.",null,null," - rapid earth fault current limiter (REFCL)"]
[17,74,"2019-01-29T22:57:00",43494.956250000003,-37.364209020047397,145.03267599347501,"23 MCDONALD DRIVE, WANDONG VIC 3758",928497,"KMS12","Low voltage AC (<1kV)","RURAL SHORT"," - switch (disconnector/isolator)","two phase","Otherwise started by a distribution system","within area delineated on plan LEGL./16-354",4.5999999999999996,"VERY HIGH",1,4.5999999999999996,"E0008870","20190131SPN_01","FOLCB on pole failed and burnt resulting in a ground fire at the base of the pole. Cause of FOLCB failure unknown. Fault truck attended, replaced FOLCB and restored supply",null,null," - surge diverter"]
[17,75,"2019-01-30T15:52:00",43495.661111111112,-36.3340356985535,145.963278777038,"2346 BENALLA-YARRAWONGA ROAD, DEVENISH VIC 3726",3903372,"BN2","12.7kV AC (SWER)","RURAL LONG"," - overhead conductor (bare; steel)","single wire earth return (SWER)","Started by lightning striking a distribution system or a part of a distribution system ","within area delineated on plan LEGL./16-354",4.5999999999999996,"HIGH",0.5,2.2999999999999998,"E0009020","20190204SPN_05","Lightning brought down HV wires which resulted in multiple fire starts on the ground",null,null," - voltage regulator"]
[17,76,"2019-01-31T05:31:00",43496.229861111111,-38.275004015898098,145.572907019083,"280 MCDONALDS TRACK, LANG LANG VIC 3984",514128,"LLG12","22kV AC","RURAL SHORT"," - fuse (boric acid)","three phase","Otherwise started by a distribution system","within area delineated on plan LEGL./16-354",4.5999999999999996,"HIGH",0.5,2.2999999999999998,"E0009016","20190131SPN_03","Candling HV fuse. Fuse replaced and supply restored. No evidence of ground fire",null,null,"Public lighting"]
[17,77,"2019-01-31T05:32:00",43496.230555555558,-38.172697004596102,145.78052200911003,"130 LYE AND DIXON ROAD, RIPPLEBROOK VIC 3818",2703396,"WGL11","22kV AC","RURAL SHORT"," - overhead conductor (bare; steel)","three phase","Started by any tree, or part of a tree, falling upon or coming into contact with a distribution system","HBRA only",1,"HIGH",0.5,0.5,"E0009015","20190131SPN_02","Tree impact - Caused by hazardous tree branch failure which was outside the clearance space. Eucalyptus ovata on western side of conductors located approximately 18m from the nearest conductor and approximately 80m from pole 2703397. Tree has evidence of branch failure from pest infestation in the branch attachment point (borer and ants). Refer to photos.\nThe span was last inspected on the 24th of May 2018 and cleared on the 24th of January 2019.",null,null," - brackets (major road)"]
[17,78,"2019-02-01T13:00:00",43497.541666666664,-37.065540001657197,146.14658498559899,"615 MT BULLER ROAD, MANSFIELD VIC 3722",3917428,"MSD1","22kV AC","RURAL LONG"," - fuse (EDO fuse)","single phase","Otherwise started by a distribution system","within area delineated on plan LEGL./16-354",4.5999999999999996,"HIGH",0.5,2.2999999999999998,"E0009249","20190219SPN_02","EDO HV Fuse candling. There had been lightning in the area prior to the event. When the crew arrived they checked the LV volts which were fluctuating and it was noticed one of the HV fuses had candled. Fuse tube was replaced and supply restored. There was no fire or burn marks at the base of the pole.",null,null," - brackets (minor road)"]
[17,79,"2019-02-01T13:18:00",43497.554166666669,-37.756335977585202,145.35324800889302,"13 MARKET STREET, LILYDALE VIC 3140",1008581,"LDL12","22kV AC","URBAN"," - pole (wood)","three phase","Started by any person, bird, reptile or other animal coming into contact with a distribution system","LBRA only",0.2,"HIGH",0.5,0.1,"E0010602","20190218SPN_01","Bird made contact with exposed HV conductor at the Cable Head Pole resulting in scorch marks on ground 0.1m square where the bird fell to ground",null,null," - lamps (major road)"]
[17,80,"2019-02-01T19:02:00",43497.793055555558,-38.699859978688394,146.047010019873,"225 CORNWALLS ROAD, FISH CREEK VIC 3959",2023994,"FTR22","22kV AC","RURAL SHORT"," - fuse (EDO fuse)","single phase","Otherwise started by a distribution system","HBRA only",1,"HIGH",0.5,0.5,"E0009270","20190204SPN_02","Customer contacted AusNet advising they had fluctuating volts, fault crew was dispatched and, upon arrival, found a candling ELF fuse tube. Fuse replaced and supply restored. No evidence of ground fire",null,null," - lamps (minor road)"]
[{"$f":"COUNTA(C118:O118,Q118,T118:V118)","v":17},81,"2019-02-02T22:53:00",43498.953472222223,-37.251223093444899,144.91838755191301,"100 CAMPASPE ROAD, WILLOWMAVIN VIC 3764",4702628,"KMS11","12.7kV AC (SWER)","RURAL SHORT"," - overhead conductor (bare; steel)","single wire earth return (SWER)","Started by any person, bird, reptile or other animal coming into contact with a distribution system","within electric line construction area",19.8,"VERY HIGH",1,19.8,"E0009278","20190204SPN_01","insulator make DIA (Dalton Insulators Australia) manufacture year 1980 broke due to crack around the conductor groove. The crack was caused by cement growth.",null,null," - luminaires (major road)"]
[17,82,"2019-02-03T07:02:00",43499.293055555558,-37.699553999843104,145.181312990941,"46 INGRAMS ROAD, RESEARCH VIC 3095",919354,"ELM13","22kV AC","URBAN"," - overhead conductor (bare; all aluminium conductor)","three phase","Started by any person, bird, reptile or other animal coming into contact with a distribution system","LBRA only",0.2,"SEVERE",2,0.4,"E0009283","20190212SPN_03","Possum on HV conductor, caught fire and fell to ground resulting in small fire (2m x 3m) at pole of pole",null,null," - luminaires (minor road)"]
[17,83,"2019-02-03T18:44:00",43499.780555555553,-37.601952994363799,145.28282500874502,"10 WILMA GROVE, ST ANDREWS VIC 3761",920541,"DRN23","22kV AC","RURAL LONG"," - fuse (boric acid)","single phase","Otherwise started by a distribution system","HBRA only",1,"SEVERE",2,2,"E0009287","20190212SPN_04","candling HV fuse resulting in small ground fire",null,null," - poles / columns (major road)"]
[17,84,"2019-02-05T12:35:00",43501.524305555555,-38.445898004339398,145.754205999069,"50 JAMES ROAD, BENA VIC 3946",2007971,"LGA23","22kV AC","RURAL LONG"," - fuse (boric acid)","single phase","Otherwise started by a distribution system","HBRA only",1,"HIGH",0.5,0.5,"E0009466","20190207SPN_01","Candled fuse and no evidence of ground fire. Fuse replaced",null,null," - poles / columns (minor road)"]
[17,85,"2019-02-06T07:13:00",43502.300694444442,-38.351854017741005,146.38242700103703,"610 JUMBUK ROAD, YINNAR SOUTH VIC 3869",2614576,"MWT31","22kV AC","RURAL SHORT"," - overhead conductor (bare; steel)","single phase","Started by any tree, or part of a tree, falling upon or coming into contact with a distribution system","HBRA only",1,"LOW-MODERATE",0.2,0.2,"E0009546","20190207SPN_03","Hazardous tree branch which was outside the clearance space: Bifurcated, Semi Mature Euc sp (H16m, DBH 700mm), has faulted at a point 1.7m from ground level and fallen onto HV conductors. Point of failure was on rear side of leader (non-line side/Sth side of line side leader), where Fungal Fruiting Body was present at site of previous failure. This would not have been visible from a span assessment. Decay and build up of soil present in center of the leader (deadwood), at the site of the Fruiting Body and down to ground level. Please refer to attached photos.",null,null,"Other "]
[17,86,"2019-02-06T13:00:00",43502.541666666664,-37.689302685997099,145.10076793692502,"17 COROWA CRESCENT, GREENSBOROUGH VIC 3088",5720978,"WT13","Low voltage AC (<1kV)","URBAN"," - LV pillar","three phase","Otherwise started by a distribution system","LBRA only",0.2,"HIGH",0.5,0.1,"E0009621","20190213SPN_03","LV supply pillar in customer's front yard has failed internally resulting in  a small shrub, adjacent to the pillar,  being burnt, No damage to customer property. Pillar appears to have failed due to age (approx. 40 years old)",null,null," - connection box"]
[17,87,"2019-02-06T13:15:00",43502.552083333336,-38.017304022059996,145.97359699265201,"18 MACKINTOSH ROAD, NEERIM SOUTH VIC 3831",2700235,"WGL24","22kV AC","RURAL LONG"," - transformer (pole mounted)","single phase","Started by any other thing forming part of or coming into contact with a distribution system","HBRA only",1,"LOW-MODERATE",0.2,0.2,"E0009630","20190828SPN_01","Crew arrived and found the grass beneath the transformer was burnt, but no fire was present when crew arrived. Transformer had a slow oil leak from the HV bushing and had failed but attending crew advised the fire did not start from the transformer. Investigation conducted but exact cause of fire inconclusive. Attending crew advised civil works had taken place in the vicinity and the grass fire may have been caused by the circuit breaker on pole.",null,null," - earth / earthing"]
[17,88,"2019-02-07T15:36:00",43503.65,-38.109929018573204,145.48628500773398,"990 KOO WEE RUP ROAD, PAKENHAM VIC 3810",515966,"PHM22","22kV AC","RURAL SHORT"," - underground cable","three phase","Otherwise started by a distribution system","HBRA only",1,"LOW-MODERATE",0.2,0.2,"E0009793","20190213SPN_04","HV cable on Blue phase of cable head pole has failed and burnt resulting in a ground fire. The insulation on the blue phase dropper appears to have degraded resulting in failure and subsequent fire."]
[17,89,"2019-02-07T21:08:00",43503.880555555559,-37.982749267970298,145.31915927128603,"165 ROBINSON RD, NARRE WARREN NORTH VIC 3804",519932,"LYD14","22kV AC","RURAL SHORT"," - surge diverter","three phase","Otherwise started by a distribution system","HBRA only",1,"LOW-MODERATE",0.2,0.2,"E0009795","20190213SPN_05","Surge Diverter on Blue phase of cablehead pole appears to have failed resulting in small ground fire approx. 1m sq."]
[17,90,"2019-02-08T19:29:00",43504.811805555553,-37.758494004768401,145.43036700881302,"8A MAURICE ROAD, GRUYERE VIC 3770",1002281,"LDL23","22kV AC","RURAL LONG"," - fuse (EDO fuse)","single phase","Otherwise started by a distribution system","within area delineated on plan LEGL./16-354",4.5999999999999996,"HIGH",0.5,2.2999999999999998,"E0009921","20190211SPN_04","Candled EDO HV fuse following bird contacting O/H HV conductors. No damaged to AusNet assets and no evidence of ground fire",null,null,"Extra low voltage AC (<50V)"]
[17,91,"2019-02-09T17:08:00",43505.713888888888,-38.832428986790902,146.132582009195,"11 TRELAWNY AVENUE, SANDY POINT VIC 3959",2021646,"FTR22","Low voltage AC (<1kV)","RURAL SHORT"," - connection box","three phase","Otherwise started by a distribution system","HBRA only",1,"VERY HIGH",1,1,"E0009927","20190211SPN_03","Pole mounted Fused Mains Box has failed and melted resulting in pole fire. Cause of failure unknown. No evidence of ground fire",null,null,"Low voltage AC (<1kV)"]
[17,92,"2019-02-10T07:41:00",43506.320138888892,-37.736738987042592,145.17231501027101,"1 KEARNEY LANE, TEMPLESTOWE VIC 3106",1207946,"ELM34","22kV AC","URBAN"," - fuse (EDO fuse)","single phase","Otherwise started by a distribution system","within area delineated on plan LEGL./16-354",4.5999999999999996,"LOW-MODERATE",0.2,0.91999999999999993,"E0009935","20190211SPN_02","Candled EDO fuse and no evidence of ground fire. Suspect fault occurred during previous lightning storm. Replaced EDO tube and restored supply.",null,null,"2.2kV AC"]
[17,93,"2019-02-11T17:10:00",43507.715277777781,-37.376144354586096,145.27618225369901,"2583 WHITTLESEA-YEA ROAD, FLOWERDALE VIC 3658",4707366,"SMR14","22kV AC","RURAL LONG"," - overhead conductor (ABC)","three phase","Otherwise started by a distribution system","within electric line construction area",19.8,"HIGH",0.5,9.9,"E0010152","20190212SPN_01","Cable insulation degradation due to age.",null,null,"6.6kV AC"]
[17,94,"2019-02-12T11:10:00",43508.465277777781,-37.789474982766201,145.28314800797301,"3 SURREY ROAD W, CROYDON VIC 3136",1215701,"CPK21","22kV AC","URBAN"," - overhead conductor (bare; all aluminium conductor)","three phase","Started by any other thing forming part of or coming into contact with a distribution system","LBRA only",0.2,"HIGH",0.5,0.1,"E0010178","20190213SPN_06","Truck believed to have contacted O/H communications cable causing them to contact O/H HV conductors. Investigator found no evidence of fire or damage to Distribution assets",null,null,"11kV AC"]
[17,95,"2019-02-12T18:27:00",43508.768750000003,-36.874907007061502,145.61356298436201,"1589 EUROA-MANSFIELD ROAD, GOORAM VIC 3666",3904896,"BN1","22kV AC","RURAL LONG"," - fuse (boric acid)","single phase","Otherwise started by a distribution system","within area delineated on plan LEGL./16-354",4.5999999999999996,"VERY HIGH",1,4.5999999999999996,"E0010281","20190213SPN_01","Candling HV fuse",null,null,"12.7kV AC (SWER)"]
[17,96,"2019-02-17T10:55:00",43513.454861111109,-38.296956472418998,146.13450564380801,"411 CHILDERS-THORPDALE ROAD, THORPDALE VIC 3835",2207436,"MOE32","22kV AC","RURAL SHORT"," - overhead conductor (bare; steel)","three phase","Otherwise started by a distribution system","within area delineated on plan LEGL./16-354",4.5999999999999996,"HIGH",0.5,2.2999999999999998,"E0010807","20190218SPN_03","Rusted 3/12 Steel conductor broke mid span at the steel sleeve between poles LIS2207435 and LIS2207436 resulting in a small ground fire. Only one conductor of the 3phase circuit broke. One dead cow found in the vacinity of the wood pole.",null,null,"22kV AC"]
[17,97,"2019-02-18T01:42:00",43514.070833333331,-36.4215890087955,146.58007502440901,"379 DIFFEY ROAD, EVERTON VIC 3678",4508817,"WN5","22kV AC","RURAL LONG"," - fuse (EDO fuse)","single phase","Otherwise started by a distribution system","within area delineated on plan LEGL./16-354",4.5999999999999996,"VERY HIGH",1,4.5999999999999996,"E0010821","20190218SPN_02","Candled HV fuse",null,null,"33kV AC"]
[17,98,"2019-02-18T12:40:00",43514.527777777781,-37.885382006889998,145.41188597140399,"136 MOXHAMS ROAD, MONBULK VIC 3793",1304701,"BGE24","22kV AC","RURAL SHORT"," - fuse (boric acid)","three phase","Otherwise started by a distribution system","within electric line construction area",19.8,"HIGH",0.5,9.9,"E0011130","20190220SPN_01","Candling HV fuse.  Fuse replaced and supply restored",null,null,"66kV AC"]
[17,99,"2019-02-18T17:20:00",43514.722222222219,-37.798940043436104,145.21589901952601,"1 CANTALA CRESCENT, RINGWOOD NORTH VIC 3134",1210191,"RWN24","22kV AC","URBAN"," - overhead conductor (bare; all aluminium conductor)","three phase","Started by any person, bird, reptile or other animal coming into contact with a distribution system","LBRA only",0.2,"HIGH",0.5,0.1,"E0011010","20190219SPN_01","Possum contacted O/H HV conductors resulting in a small ground fire (0.5m sq) when it fell to ground",null,null,"132kV AC"]
[17,100,"2019-02-19T13:51:00",43515.57708333333,-37.932202980182495,147.09724102627001,"17 STOCKDALE ROAD, STRATFORD VIC 3862",2511984,"MFA21","22kV AC","RURAL LONG"," - fuse (boric acid)","single phase","Otherwise started by a distribution system","HBRA only",1,"LOW-MODERATE",0.2,0.2,"E0011088","20190219SPN_03","Crew arrived onsite found 6k BA fuse had candled. No other damage and no evidence of fallen material at base of pole. Fuse replaced and supply restored",null,null,"220kV AC"]
[17,101,"2019-02-24T18:09:00",43520.756249999999,-37.682118988075892,145.058966006839,"60 CARBEEN DRIVE, BUNDOORA VIC 3083",905808,"WT6","22kV AC","URBAN"," - overhead conductor (bare; all aluminium conductor)","three phase","Started by any person, bird, reptile or other animal coming into contact with a distribution system","LBRA only",0.2,"HIGH",0.5,0.1,"E0011688","20190226SPN_01","Bird has made contact with live 22kV on pole resulting in a small grass fire of approx 13 x 2 metres when it fell to ground.",null,null,"330kV AC"]
[17,102,"2019-02-25T19:29:00",43521.811805555553,-38.210971011228402,146.27802901528602,"220 TWO MILE ROAD, HERNES OAK VIC 3825",2206528,"MOE31","66kV AC","RURAL LONG"," - overhead conductor (bare; all aluminium conductor)","three phase","Started by any tree, or part of a tree, falling upon or coming into contact with a distribution system","within area delineated on plan LEGL./16-354",4.5999999999999996,"VERY HIGH",1,{"$f":"IF(OR(P139=\"\",R139=\"\"),\"\",IF(AND(O139=\"within electric line construction area\",Q139=\"No forecast\"),1,P139*R139))","v":4.5999999999999996},"E0011790","20190226SPN_02","Semi-Mature Eucalyptus on embankment has failed 2m from ground level and fallen onto 66kv conductors on opposite side of road. White Rot present at site of tree failure, along with 2 x small Fungal Fruiting Bodies on back side of trunk. These would not have been indentified during inspection and, as such, tree was not identified as being hazardous",null,null,"500kV AC"]
[{"$f":"COUNTA(C140:O140,Q140,T140:V140)","v":17},103,"2019-02-25T20:10:00",43521.840277777781,-37.682537008488197,145.01177300108603,"1 SPRING STREET, THOMASTOWN VIC 3074",908031,"TT9","Low voltage AC (<1kV)","RURAL LONG"," - connector / termination","three phase","Otherwise started by a distribution system","LBRA only",{"$f":"IF(O140=\"\",\"\",IF(O140=\"LBRA only\",0.2,IF(O140=\"HBRA only\",1,IF(O140=\"within electric line construction area\",19.8,IF(O140=\"within area delineated on plan LEGL./16-354\",4.6,\"\")))))","v":0.2},"VERY HIGH",{"$f":"IF(Q140=\"\",\"\",IF(Q140=\"No forecast\",0.1,IF(Q140=\"Low-moderate\",0.2,IF(Q140=\"High\",0.5,IF(Q140=\"Very high\",1,IF(Q140=\"Severe\",2,IF(Q140=\"Extreme\",3.5,5)))))))","v":1},0.2,"E0011792","20190226SPN_03","Single phase pole type junction box failed causing hot molten plastic and aluminium to fall to ground igniting a 1.5 x 1 meter grass fire.",null,null,"Extra low voltage DC (<120V ripple free)"]
[17,104,"2019-02-27T09:55:00",43523.413194444445,-38.202379000691302,146.06782297649602,"1 NEAGLE STREET, YARRAGON VIC 3823",2202558,"MOE22","22kV AC","RURAL LONG"," - fuse (EDO fuse)","three phase","Otherwise started by a distribution system","within area delineated on plan LEGL./16-354",4.5999999999999996,"HIGH",0.5,2.2999999999999998,"E0011955","20190227SPN_02","Candled EDO fuse. No damage to pole and no evidence of ground fire",null,null,"Low voltage DC (<1.5kV)"]
[17,105,"2019-03-01T01:44:00",43525.072222222225,-37.662450119693197,145.045753899895,"194 CHILDS ROAD, MILL PARK VIC 3082",5813564,"EPG34","Low voltage AC (<1kV)","URBAN"," - luminaires (major road)","single phase","Otherwise started by a distribution system","LBRA only",0.2,"VERY HIGH",1,0.2,"E0012290","20190304SPN_03","Fault crew attended and found a 150W HPS street light head burnt out. No external fire damage and fault contained within light head. No evidence of ground fire",null,null,"600V DC"]
[17,106,"2019-03-01T15:39:00",43525.652083333334,-37.7244159924673,145.76439301874001,"7 WHITEGUM DRIVE, EAST WARBURTON VIC 3799",1408778,"WYK13","22kV AC","RURAL SHORT"," - surge diverter","three phase","Otherwise started by a distribution system","within area delineated on plan LEGL./16-354",4.5999999999999996,"VERY HIGH",1,4.5999999999999996,"E0012559","20190304SPN_04","During REFCL testing, WYK13 feeder CB  tripped to lockout and a fire was reported and extinguished by CFA. A 22kV road side (white phase) lighting arrestor has failed during REFCL testing resulting in a small 2mx2m grass fire as debris fell to ground.",null,null,"1500V DC"]
[17,107,"2019-03-01T21:11:00",43525.882638888892,-37.671680018210495,145.14973199406799,"22 COLLINS STREET, DIAMOND CREEK VIC 3089",926701,"ELM12","Low voltage AC (<1kV)","URBAN"," - overhead conductor (bare; all aluminium conductor)","three phase","Started by any tree, or part of a tree, falling upon or coming into contact with a distribution system","LBRA only",0.2,"VERY HIGH",1,0.2,"E0012577","20190304SPN_06","A tree branch broke from a gumtree tree and, while falling to ground, clipped LV open wire mains causing LV white & blue phase conductors to clash. The resultant fault current caused a mains connection failure at the s/s LV white phase isolator with holt molten metal to falling to groundand starting a small 2m x 2.5m grass fire at the base of the pole.",null,null,"Earthing cable"]
[17,108,"2019-03-02T08:09:00",43526.339583333334,-38.352120017955997,146.437611025558,"205 LINDNERS ROAD, JEERALANG JUNCTION VIC 3840",2616504,"MWT31","22kV AC","RURAL SHORT"," - fuse (EDO fuse)","single phase","Otherwise started by a distribution system","HBRA only",1,"VERY HIGH",1,1,"E0012584","20190304SPN_07","Candled HV EDO fuse only and no evidence of ground fire"]
[17,109,"2019-03-03T16:30:00",43527.6875,-37.646964991498294,145.036761009321,"24 GREENBROOK DRIVE, EPPING VIC 3076",916606,"EPG34","Low voltage AC (<1kV)","URBAN"," - switch (disconnector/isolator)","three phase","Otherwise started by a distribution system","LBRA only",0.2,"SEVERE",2,0.4,"E0012682","20190304SPN_10","An LV isolator and transformer lead failed on pole LIS916606 resulting in 2 small grass fires (approx 1m sq and 12m sq) as hot molten metal fell to ground."]
[17,110,"2019-03-03T18:30:00",43527.770833333336,-37.6664899939706,145.12125001731502,"29 RIVER AVENUE, PLENTY VIC 3090",923074,"ELM15","Low voltage AC (<1kV)","RURAL SHORT"," - overhead conductor (ABC)","three phase","Otherwise started by a distribution system","within area delineated on plan LEGL./16-354",4.5999999999999996,"SEVERE",2,9.1999999999999993,"E0012617","20190304SPN_08","An ABC mains connection clamp failed due to high electrical demand causing ABC XLPE insulation to melt and drip on ground. The ABC overhead mains also broke and fell on ground. ABC repaired and supply restored",null,null,"single wire earth return (SWER)"]
[17,111,"2019-03-03T18:30:00",43527.770833333336,-37.656280979748693,145.36942098006602,"2 ANZAC AVENUE, YARRA GLEN VIC 3775",1005807,"CPK12","Low voltage AC (<1kV)","RURAL SHORT"," - dropper / bridge","three phase","Otherwise started by a distribution system","LBRA only",0.2,"SEVERE",2,0.4,"E0012619","20190304SPN_09","A suspected transformer conductor lead failed due to high electrical demand resulting in a small ground fire (approx. 1m x 3m) as hot molten metal and plastic fell to ground. Repair works consisted of replacing with double transformer leads and substation split circuit fusing.",null,null,"single phase"]
[17,112,"2019-03-04T11:41:00",43528.486805555556,-37.7689829834016,145.322777986993,"17 WAINEWRIGHT AVENUE, MOOROOLBARK VIC 3138",1012598,"CPK13","22kV AC","URBAN"," - dropper / bridge","three phase","Otherwise started by a distribution system","LBRA only",0.2,"HIGH",0.5,0.1,"E0012763","20190304SPN_11","A suspected centre phase HV dropper lead supplying a ground type substation failed at the pole resulting in a small ground fire as hot molten metal and debris fell to ground.",null,null,"two phase"]
[17,113,"2019-03-05T18:53:00",43529.786805555559,-37.469654005886497,144.92357299779502,"800 OLD SYDNEY ROAD, BEVERIDGE VIC 3753",4718493,"KLO24","22kV AC","RURAL SHORT"," - fuse (EDO fuse)","single phase","Otherwise started by a distribution system","within area delineated on plan LEGL./16-354",4.5999999999999996,"VERY HIGH",1,4.5999999999999996,"E0013105","20190307SPN_02","Candled HV EDO fuse.",null,null,"three phase"]
[17,114,"2019-03-06T15:30:00",43530.645833333336,-38.2043929968399,145.563574020125,"25 SPENCERS ROAD, MONOMEITH VIC 3984",513165,"LLG11","22kV AC","RURAL SHORT"," - fuse (boric acid)","single phase","Otherwise started by a distribution system","within area delineated on plan LEGL./16-354",4.5999999999999996,"HIGH",0.5,2.2999999999999998,"E0013286","20190308SPN_02","Candled HV boric acid fuse. No evidence of ground fire"]
[17,115,"2019-03-06T18:31:00",43530.771527777775,-38.236185993941298,146.39551998105,"163 PRINCES DRIVE, MORWELL VIC 3840",2618799,"MWT11","22kV AC","RURAL SHORT"," - overhead conductor (covered uninsulated)","three phase","Otherwise started by a distribution system","LBRA only",0.2,"HIGH",0.5,0.1,"E0013322","20190308SPN_03","Cable fault has occured and cable has failed half way up the cable head resulting in pole fire. Cause of cable fault unknown.\nNo evidence of ground fire."]
[17,116,"2019-03-07T12:34:00",43531.523611111108,-38.226408996449202,145.54118802792601,"180 EDENS ROAD, CALDERMEADE VIC 3984",513552,"LLG11","22kV AC","RURAL SHORT"," - fuse (boric acid)","single phase","Otherwise started by a distribution system","within area delineated on plan LEGL./16-354",4.5999999999999996,"HIGH",0.5,2.2999999999999998,"E0014035","20190326SPN_03","Candled Boric Acid HV fuse identified. The fuse base appears to not have been installed correctly, connections were loose and no grease as per manufactures requirements. A technical bulletin is being prepared to highlight this issue and ensure this equipment is installed correctly.",null,null,"Negligible: no ground fire"]
[17,117,"2019-03-07T16:15:00",43531.677083333336,-38.056260013880703,145.46683696882499,"125 MULCAHY ROAD, PAKENHAM VIC 3810",501073,"OFR23","22kV AC","RURAL LONG"," - fuse (EDO fuse)","three phase","Otherwise started by a distribution system","HBRA only",1,"HIGH",0.5,0.5,"E0013571","20190308SPN_05","Excavator made contact with 22kV Conductors between LIS501074 & LIS501073 which caused 2 fuses to operate and 1 fuse to candle. No further damage was found and no injuries sustained. Fuses were replace and supply to customers restored",null,null,"Localised: less than 10 sq.m"]
[17,118,"2019-03-09T19:10:00",43533.798611111109,-38.307581008664698,146.541212008146,"43 TRARALGON-BALOOK ROAD, TRARALGON SOUTH VIC 3844",2605225,"TGN23","22kV AC","RURAL SHORT"," - overhead conductor (bare; copper)","three phase","Started by any tree, or part of a tree, falling upon or coming into contact with a distribution system","HBRA only",1,"HIGH",0.5,0.5,"E0013787","20190312SPN_02","Semi mature Eucalypt located on creek bank 4m from HV line, has had branch fail at union 10m from ground level and fall onto HV conductors. The union shows signs of minor decay which would not have been visible from a ground based assessment. Signs of fire in 2 areas - Midspan (2x5m), and around the pole & stay wire (2 x 10m). The remaining branch above the point of failure is leaning away from the line & not hazardous to AusNet assets. The span was last cleared on the 2nd of October 2018",null,null,"Small: 10 - 1000 aq.m"]
[17,119,"2019-03-09T19:36:16",43533.816851851851,-38.558221019488094,145.88129301812401,"16 HUNTS ROAD, LEONGATHA SOUTH VIC 3953",2010501,"LGA23","Low voltage AC (<1kV)","RURAL LONG"," - connection box","single phase","Otherwise started by a distribution system","HBRA only",1,"HIGH",0.5,0.5,"E0013786","20190312SPN_01","The fuse mains box on the pole appears to have melted resulting in 0.5m sq grassfire at base of the pole with melted plastic in the area around the burnt grass.  Pole has surface burns and transformer is covered in black soot. Pole still alight when crew arrived. Supply isolated and CFA called.\nPole was tested and deemed ok to remain, transformer was replaced with single phase 25kVA. New 95mm ABC leads were installed from the transformer to the new krone box. 35mm leads installed from Krone box to new FOLCB to reconnect the existing underground service (no impact to underground service)",null,null,"Medium: 1000 sq.m - 10 ha"]
[17,120,"2019-03-10T04:30:00",43534.1875,-38.798747345498498,146.22048166987003,"195 PATERSON ROAD, YANAKIE VIC 3960",2027889,"FTR22","22kV AC","RURAL SHORT"," - overhead conductor (bare; steel)","single phase","Otherwise started by a distribution system","HBRA only",1,"HIGH",0.5,0.5,"E0013804","20190312SPN_03","Conductor has detached from insulator at pole. 35-45km/h winds in the area. Conductor found hanging approx. 3m from ground height. Small vegetation in vicinity of conductor and scorch marks on vegetation and grass fire approx. 100mx2m long. CFA attended to put out grass fire.\nThere were no signs of corrosion on the tie and it is believed high winds caused the tie to fatigue and fail. In order to restore supply, a new tie was installed however further assessment to be carried out to determine if vibration dampers and/or armour rods are to be installed in this location.\nNo asset failure report available due to nature of incident.",null,null,"Large: more than 10 ha"]
[17,121,"2019-03-10T05:00:00",43534.208333333336,-37.105286004803503,146.12119397408401,"405 RIFLE BUTTS ROAD, MANSFIELD VIC 3722",3919053,"MSD1","22kV AC","RURAL LONG"," - fuse (boric acid)","single phase","Otherwise started by a distribution system","within area delineated on plan LEGL./16-354",4.5999999999999996,"HIGH",0.5,2.2999999999999998,"E0013788","20190311SPN_01","6K BA fuse candling only and no evidence of ground fire"]
[17,122,"2019-03-11T11:03:00",43535.460416666669,-37.915886997420102,145.44225399718201,"36 MEADOWVIEW LANE, EMERALD VIC 3782",418996,"BGE22","22kV AC","RURAL SHORT"," - fuse (boric acid)","single phase","Otherwise started by a distribution system","within area delineated on plan LEGL./16-354",4.5999999999999996,"HIGH",0.5,2.2999999999999998,"E0013830","20190318SPN_01","Candled 6K BA fuse. No evidence of ground fire, Fault Truck Replaced fuse and restored supply."]
[17,123,"2019-03-12T19:30:00",43536.8125,-36.1439030059815,146.87986201129101,"31 HUON CREEK ROAD, WODONGA VIC 3690",5202909,"WOTS25","22kV AC","RURAL SHORT"," - overhead conductor (bare; aluminium core steel reinforced)","three phase","Started by any tree, or part of a tree, falling upon or coming into contact with a distribution system","LBRA only",0.2,"HIGH",0.5,0.1,"E0018410","20190403SPN_04","A council owned poplar tree in a declared area (council responsibility) suffered total root plate failure and has brought multiple spans of conductor to the ground.",null,null,"Started in or originated from a distribution system"]
[17,124,"2019-03-15T20:00:00",43539.833333333336,-36.557966857712898,145.979372245946,"18 MAUD STREET, BENALLA VIC 3672",3902405,"BN4","Low voltage AC (<1kV)","URBAN"," - overhead conductor (bare; copper)","three phase","Started by any tree, or part of a tree, falling upon or coming into contact with a distribution system","LBRA only",0.2,"HIGH",0.5,0.1,"E0015015","20190318SPN_03","Tree branch in Taungurong Park Reserve fell on LV conductor.",null,null,"Started by any tree, or part of a tree, falling upon or coming into contact with a distribution system"]
[17,125,"2019-03-15T20:04:00",43539.836111111108,-38.062305008668297,145.67539898579,"147 GARFIELD NORTH ROAD, GARFIELD NORTH VIC 3814",510683,"WGL12","12.7kV AC (SWER)","RURAL LONG"," - transformer (pole mounted)","single wire earth return (SWER)","Started by any person, bird, reptile or other animal coming into contact with a distribution system","HBRA only",1,"HIGH",0.5,0.5,"E0015009","20190319SPN_05","Candling HV fuse and resulting in 50 sq m ground fire. Spoke to Customer /land owner had observed a bird come into contact with overhead structure and burst into flames. Also Observed tree branches and vegetation piled up close to ISO had been burnt as result of the ember hitting the ground.",null,null,"Started by any person, bird, reptile or other animal coming into contact with a distribution system"]
[17,126,"2019-03-17T07:30:00",43541.3125,-37.624689990859494,145.40963198722002,"1691 MELBA HIGHWAY, DIXONS CREEK VIC 3775",1007398,"LDL14","Low voltage AC (<1kV)","RURAL SHORT"," - dropper / bridge","single phase","Otherwise started by a distribution system","within area delineated on plan LEGL./16-354",4.5999999999999996,"HIGH",0.5,2.2999999999999998,"E0015034","20190325SPN_01","The fire appears to have been caused by worn exposed non-covered LV leads from the LV bushings of the s/stn to the LV fuses. Cause of failire unknown. LV leads were replaced and a new LV Krone/Isolator box installed.",null,null,"Started by lightning striking a distribution system or a part of a distribution system "]
[17,127,"2019-03-17T18:50:00",43541.784722222219,-37.856809033050396,145.22623572867201,"64 AMERSHAM DRIVE, WANTIRNA VIC 3152",1031581,"BRA21","Low voltage AC (<1kV)","URBAN"," - LV pillar","three phase","Started by any other thing forming part of or coming into contact with a distribution system","LBRA only",0.2,"HIGH",0.5,0.1,"E0015065","20190319SPN_07","Unknown vehicle reported to have lost control and hit paralleling pillar outside 64 Amersham Drive, Wantirna resulting in a small grass fire of less than 0.25sqm.",null,null,"Started by any other thing forming part of or coming into contact with a distribution system"]
[17,128,"2019-03-19T20:30:00",43543.854166666664,-36.156097004455496,148.00707501833699,"150 TOWONG HILL ROAD, TOWONG VIC 3707",5216213,"WOTS24","22kV AC","RURAL LONG"," - fuse (EDO fuse)","single phase","Otherwise started by a distribution system","within area delineated on plan LEGL./16-354",4.5999999999999996,"LOW-MODERATE",0.2,0.91999999999999993,"E0015832","20190320SPN_02","6A EDO fuse candled. Fuse replaced",null,null,"Otherwise started by a distribution system"]
[17,129,"2019-03-20T18:40:00",43544.777777777781,-37.373865014786496,145.01758798407002,"120 ARKELLS LANE, WANDONG VIC 3758",4700817,"KMS12","22kV AC","RURAL SHORT"," - fuse (EDO fuse)","single phase","Otherwise started by a distribution system","within area delineated on plan LEGL./16-354",4.5999999999999996,"HIGH",0.5,2.2999999999999998,"E0016019","20190321SPN_01","Lightning storm identified in the area suspected to have caused fuse operation and subsequent candling. No evidence of ground fire"]
[17,130,"2019-03-22T07:30:00",43546.3125,-36.468645984330593,147.01512899159999,"BELTANA, 4348 KIEWA VALLEY HIGHWAY, DEDERANG VIC 3691",5200750,"WOTS11","22kV AC","RURAL LONG"," - fuse (boric acid)","three phase","Otherwise started by a distribution system","within area delineated on plan LEGL./16-354",4.5999999999999996,"LOW-MODERATE",0.2,0.91999999999999993,"E0016423","20190325SPN_05","Fault crew attended site following a storm and found 2 fuses had successfully operated but the 3rd had hung-up and candled."]
[17,131,"2019-03-22T09:31:00",43546.396527777775,-36.123742837894902,146.985607920273,"MCINTOSHS ROAD, BONEGILLA VIC 3691",5235758,"WOTS-HPS","66kV AC","N/A"," - insulators","three phase","Started by lightning striking a distribution system or a part of a distribution system ","within area delineated on plan LEGL./16-354",4.5999999999999996,"LOW-MODERATE",0.2,0.91999999999999993,"E0016292","20190327SPN_01","66KV pole on WOTS-HPS line struck by lightning",null,null,1]
[17,132,"2019-03-22T12:49:00",43546.53402777778,-36.456955002785797,147.29227298492302,"283 MITTA NORTH ROAD, ESKDALE VIC 3701",5210351,"WOTS13","22kV AC","RURAL LONG"," - insulators","single phase","Started by lightning striking a distribution system or a part of a distribution system ","within area delineated on plan LEGL./16-354",4.5999999999999996,"LOW-MODERATE",0.2,0.91999999999999993,"E0016441","20190325SPN_04","Burnt HV bushing cover on pole type transformer after lightning strike. A storm had passed through the area prior to the crews arrival. Lots of Lightning in the area. No fuses down on substation and customer still on supply. Follow up raised to replace the bushing covers and check the transformer.",null,null,2]
[17,133,"2019-03-25T15:04:00",43549.62777777778,-37.7658099957481,145.43038398412102,"2 MAURICE ROAD, GRUYERE VIC 3139",1002272,"LDL23","22kV AC","RURAL LONG"," - overhead conductor (bare; aluminium core steel reinforced)","three phase","Started by any tree, or part of a tree, falling upon or coming into contact with a distribution system","within area delineated on plan LEGL./16-354",4.5999999999999996,"VERY HIGH",1,4.5999999999999996,"E0016756","20190326SPN_02","Total of 4 separate fires reported in the vicinity totalling an estimated 12,000 square metres but geographically disjointed.\n2 x fires on property (2 Maurice Rd, Gruyere) and road reserve between LIS1002272 and LIS1002273 following a tree branch making contact with, and bringing down HV conductor at LIS1002273\n2 x fires on property (2 Maurice Rd, Gruyere and road reserve) along Victoria Rd between LIS1013967 and LIS1002271 and LIS1013967 to LIS101396 when hanging centre phase 22kV dropper cable made contact with the outer phase at the tee-off pole.\n\nThe tree in question was located in roadside reserve on the opposite side of the road to the powerline and approximately 15m from the nearest conductors. The fault was caused by the failure of a large leader due to the presence of decay on the upper side of the union (not detectable from ground level). A number of other hazard trees were identified in the vicinity and have been scheduled for cutting. The span was last inspected on the 27/04/2018 and was last cleared on the 16/07/2018.",null,null,3]
[17,134,"2019-03-27T09:30:00",43551.395833333336,-36.4262170037277,147.036825016401,"3613 KIEWA VALLEY HIGHWAY, KERGUNYAH SOUTH VIC 3691",5200685,"WOTS11","22kV AC","RURAL LONG"," - fuse (EDO fuse)","single phase","Otherwise started by a distribution system","within area delineated on plan LEGL./16-354",4.5999999999999996,"LOW-MODERATE",0.2,{"$f":"IF(OR(P171=\"\",R171=\"\"),\"\",IF(AND(O171=\"within electric line construction area\",Q171=\"No forecast\"),1,P171*R171))","v":0.91999999999999993},"E0017229","20190327SPN_02","EDO fuse failed to operate",null,null,4]
[17,135,"2019-03-27T09:40:00",43551.402777777781,-37.640831015534502,145.02890098068099,"17 PARK STREET, EPPING VIC 3076",5645332,"EPG32","22kV AC","RURAL SHORT"," - overhead conductor (bare; all aluminium conductor)","three phase","Started by any person, bird, reptile or other animal coming into contact with a distribution system","LBRA only",0.2,"LOW-MODERATE",0.2,4.0000000000000008E-2,"E0017237","20190401SPN_01","Crow contacted O/H HV conductors at pole causing phase to ground fault which resulted in a small ground fire approx. 2m x 1m",null,null,5]
[17,136,"2019-03-29T10:11:00",43553.424305555556,-37.716928022803003,145.080896983614,"7 WATTLE DRIVE, WATSONIA VIC 3087",906803,"WT9","22kV AC","URBAN"," - crossarm (wood)","three phase","Otherwise started by a distribution system","LBRA only",0.2,"VERY HIGH",1,0.2,"E0018047","20190403SPN_02","Old brown pin type fog insulator has failed resulting in tracking causing the cross arm to burn and fail",null,null,6]
[17,137,"2019-03-29T23:57:00",43553.997916666667,-38.189466983401196,146.55570600985001,"27 STRATHCOLE DRIVE, TRARALGON VIC 3844",2613976,"LLG12","22kV AC","RURAL SHORT"," - crossarm (wood)","three phase","Otherwise started by a distribution system","LBRA only",0.2,"VERY HIGH",1,0.2,"E0018046","20190403SPN_01","Light rain in the area at the time of the incident resulting in possible tracking causing the wooden HV x-arm to smoulder around where x-arm brace attached to the x-arm.  There was no damage to the HV conductors. Wood HV crossarm replaced with steel",null,null,7]
[17,138,"2019-03-31T21:30:00",43555.895833333336,-37.804588503099396,145.27264848545602,"47 BAYSWATER ROAD, CROYDON VIC 3136",5736585,"CYN32","22kV AC","URBAN"," - fuse (boric acid)","three phase","Otherwise started by a distribution system","LBRA only",0.2,"LOW-MODERATE",0.2,4.0000000000000008E-2,"E0018113","20190403SPN_03","A bird appears to have come in contact with O/H HV assets on s/stn pole resulting in a candled fuse. Burnt bird found at  base of pole but no evidence to ground fire.",null,null,8]
[17,139,"2019-04-05T11:00:00",43560.458333333336,-37.514528725632395,145.31611499358601,"339 WHITTLESEA-KINGLAKE ROAD, KINGLAKE CENTRAL VIC 3757",929986,"KLK21","Low voltage AC (<1kV)","RURAL SHORT"," - rapid earth fault current limiter (REFCL)","three phase","Started by any other thing forming part of or coming into contact with a distribution system","within area delineated on plan LEGL./16-354",4.5999999999999996,"VERY HIGH",1,4.5999999999999996,"E0018514","20190410SPN_01","Red Phase calibration was carried out with no issues. White phase calibration was then carried out and completed successfully, however a loud bang was heard at its conclusion. Sparks and burning was observed on the top part of the inverter. Upon investigation, the top right hand side fan compartment was on fire and the braking resistor within it badly burnt. The breaking resistors are used to absorb excess energy produced by the inverter during REFCL calibration operation. In this case, a faulty breaking resistor failed and caught fire due to the excessive heat that was generarted as a result of breaking the resistor loop. The breaking resistor was destroyed by the incident. No injuries to personnel were sustained. \nFollowing the incident, the inverter was isolated, the covers removed and the unit inspected. It was noted that some molten metal may have dripped through the inverter cabinet and, due to possible contamination from molten metal, the entire inverter cabinet was replaced.\n\nThe manufacturer of the equipment (Swedish Neutral) has been contacted and engaged to assist with the investigation and the equipment panel has been made availabe to Swedish Neutral to confirm there are no other issues and confirm there is no secondary damage caused by the fault. No human or procedural factors were identified and Swedish Neutral believe this is nothing more than a component failure and have confirmed they are comfortable for all other units to go into service.",null,null,9]
[17,140,"2019-04-05T19:45:00",43560.822916666664,-37.846891011302297,145.47437598156,"25 ELEANOR DRIVE, SILVAN VIC 3795",1013469,"LDL13","22kV AC","RURAL SHORT"," - fuse (boric acid)","single phase","Otherwise started by a distribution system","within area delineated on plan LEGL./16-354",4.5999999999999996,"VERY HIGH",1,4.5999999999999996,"E0018526","20190408SPN_01","Fault crew attended and found candled 6K BA fuse on the footpath side. No Evidence of ground fire  Fuse replaced and supply restored",null,null,10]
[17,141,"2019-04-12T11:15:00",43567.46875,-38.5065660177521,145.28387798536701,"2 DIXON STREET, SURF BEACH VIC 3922",2809076,"PHI11","Low voltage AC (<1kV)","RURAL SHORT"," - connector / termination","three phase","Otherwise started by a distribution system","LBRA only",0.2,"HIGH",0.5,0.1,"E0018698","20190416SPN_02","Krone box has failed on the pole resulting in small ground fire (1mx1m) at base of the pole. Cause of failure unknown",null,null,{"$f":"Y177+1","v":11}]
[17,142,"2019-04-13T20:40:00",43568.861111111109,-38.644192987101498,146.67190000263199,"317 YARRAM-PORT ALBERT ROAD, LANGSBOROUGH VIC 3971",2608590,"FTR23","22kV AC","RURAL LONG"," - fuse (boric acid)","single phase","Otherwise started by a distribution system","HBRA only",1,"LOW-MODERATE",0.2,0.2,"E0018722","20190416SPN_03","Candled BA HV fuse. No evidence of ground fire",null,null,{"$f":"Y178+1","v":12}]
[17,143,"2019-04-15T16:28:00",43570.686111111114,-38.518900610084295,146.11986625400598,"195 DOLLAR ROAD, DUMBALK VIC 3956",2005307,"LGA13","22kV AC","RURAL LONG"," - switch (FuseSaver)","three phase","Otherwise started by a distribution system","HBRA only",1,"LOW-MODERATE",0.2,0.2,"E0018804","20190416SPN_04","Customer heard a loud noise in his paddock when he lost power to his house and noticed a small grass fire (1m x 2m). Customer proceeded to extinguish the fire and no emergency services attended. The fire was approx 8 meters west of pole 2005307 and no damage was visible to AusNet assets.  Investigation conducted but inconclusive, unable to determine exact cause of protection operation and subsequent fire. There was no bird/animal or vegetation present to provide any indication of how the fire may have started. However,  the grass fire is consistent with similar bird/animal faults that have occurred in the past.",null,null,13]
[17,144,"2019-04-16T21:10:00",43571.881944444445,-37.667963998708501,145.189284025354,"6 VALLEY ROAD, WATTLE GLEN VIC 3096",921018,"ELM15","22kV AC","RURAL SHORT"," - fuse (boric acid)","single phase","Otherwise started by a distribution system","within area delineated on plan LEGL./16-354",4.5999999999999996,"VERY HIGH",1,4.5999999999999996,"E0018853","20190417SPN_01","Candled 6k Boric Acid HV fuse. No evidence of ground fire",null,null,14]
[17,145,"2019-04-18T10:28:00",43573.436111111114,-38.276645013808597,145.56948697020499,"30 WATTLE COURT, LANG LANG VIC 3984",514134,"LLG12","22kV AC","RURAL SHORT"," - fuse (boric acid)","three phase","Otherwise started by a distribution system","within area delineated on plan LEGL./16-354",4.5999999999999996,"LOW-MODERATE",0.2,0.91999999999999993,"E0018927","20190418SPN_02","Candled BA HV fuse. No evidence of ground fire",null,null,15]
[17,146,"2019-04-19T17:58:00",43574.748611111114,-37.819215002977501,145.42027799515398,"87 QUEENS ROAD, SILVAN VIC 3795",1010930,"LDL23","22kV AC","RURAL LONG"," - fuse (boric acid)","three phase","Otherwise started by a distribution system","within area delineated on plan LEGL./16-354",4.5999999999999996,"HIGH",0.5,2.2999999999999998,"E0019078","20190429SPN_03","HV BA fuse appears to have hung-up and then candled. No evidence of ground fire",null,null,16]
[17,147,"2019-04-20T17:03:00",43575.710416666669,-38.156844010503598,146.38490601279102,"55 QUARRY ROAD, YALLOURN NORTH VIC 3825",2216241,"MOE14","22kV AC","RURAL SHORT"," - fuse (any other type)","single phase","Started by any person, bird, reptile or other animal coming into contact with a distribution system","within area delineated on plan LEGL./16-354",4.5999999999999996,"LOW-MODERATE",0.2,0.91999999999999993,"E0018955","20190422SPN_05","Bird has built nest on transformer which has caught fire resulting in a small ground fire. No asset damage identified other than melted bushing cover, burnt dropper at the bushing and flash marks on the transformer/pole. Follow up visit organised to fit appropriate animal proofing to prevent future occurrence.",null,null,17]
[17,148,"2019-04-21T19:30:00",43576.8125,-37.880846565341699,145.271838114361,"781 BURWOOD HIGHWAY, FERNTREE GULLY VIC 3156",1312340,"BRA33","Low voltage AC (<1kV)","URBAN"," - luminaires (major road)","single phase","Otherwise started by a distribution system","LBRA only",0.2,"HIGH",0.5,0.1,"E0018959","20190422SPN_01","Fault crew dispatched and found street light lantern had failed and burnt out. Cause of failure unkown at this time. Area immediately surrounding the PE cell holder was burnt and PE Cell fragments were found on ground but no evidence of ground fire. Lantern replaced and failed lantern returned to depot.",null,null,18]
[17,149,"2019-04-24T12:00:00",43579.5,-38.2203260194769,145.31576999241901,"470 WARNEET ROAD, WARNEET VIC 3980",517465,"CRE33","22kV AC","RURAL SHORT"," - fuse (boric acid)","three phase","Otherwise started by a distribution system","HBRA only",1,"LOW-MODERATE",0.2,0.2,"E0019046","20190426SPN_01","Candled 6k Boric Acid HV fuse",null,null,19]
[17,150,"2019-05-01T06:19:00",43586.263194444444,-36.0953070115362,146.65710803012701,"331 Soldiers Rd Barnawartha VIC 3688",5235940,"BWA22","22kV AC","RURAL LONG"," - fuse (boric acid)","single phase","Otherwise started by a distribution system","within area delineated on plan LEGL./16-354",4.5999999999999996,"LOW-MODERATE",0.2,0.91999999999999993,"E0019184","20190501SPN_03","BA HV fuse has candled",null,null,20]
[17,151,"2019-05-17T20:10:00",43602.840277777781,-36.560315334593298,145.99731180345,"15 RIVER GUM AVENUE, BENALLA VIC 3672",3920472,"BN6","Low voltage AC (<1kV)","RURAL LONG"," - fuse (any other type)","three phase","Started by any person, bird, reptile or other animal coming into contact with a distribution system","LBRA only",0.2,"LOW-MODERATE",0.2,4.0000000000000008E-2,"E0020177","20190520SPN_01","rats nest inside the LV side of the kiosk substation cause LV fuses to melt."]
[{"$f":"COUNTA(C189:O189,Q189,T189:V189)","v":17},152,"2019-05-22T18:32:00",43607.772222222222,-36.718163014303798,145.649708999816,"146 MCKERNANS ROAD, BALMATTUM VIC 3666",3901372,"BN1","22kV AC","RURAL LONG"," - fuse (EDO fuse)","single phase","Otherwise started by a distribution system","within area delineated on plan LEGL./16-354",{"$f":"IF(O189=\"\",\"\",IF(O189=\"LBRA only\",0.2,IF(O189=\"HBRA only\",1,IF(O189=\"within electric line construction area\",19.8,IF(O189=\"within area delineated on plan LEGL./16-354\",4.6,\"\")))))","v":4.5999999999999996},"LOW-MODERATE",{"$f":"IF(Q189=\"\",\"\",IF(Q189=\"No forecast\",0.1,IF(Q189=\"Low-moderate\",0.2,IF(Q189=\"High\",0.5,IF(Q189=\"Very high\",1,IF(Q189=\"Severe\",2,IF(Q189=\"Extreme\",3.5,5)))))))","v":0.2},{"$f":"IF(OR(P189=\"\",R189=\"\"),\"\",IF(AND(O189=\"within electric line construction area\",Q189=\"No forecast\"),1,P189*R189))","v":0.91999999999999993},"E0020336","20190524SPN_01","Burnt fuse tube hung-up during storm event resulting in EDO HV fuse candling. No evidence of ground fire"]
[{"$f":"COUNTA(C190:O190,Q190,T190:V190)","v":17},153,"2019-05-31T23:52:00",43616.994444444441,-37.911747090388801,145.24615977261502,"96 KELLETTS ROAD, ROWVILLE VIC 3178",5806314,"FGY31","Low voltage AC (<1kV)","URBAN"," - luminaires (major road)","single phase","Otherwise started by a distribution system","LBRA only",{"$f":"IF(O190=\"\",\"\",IF(O190=\"LBRA only\",0.2,IF(O190=\"HBRA only\",1,IF(O190=\"within electric line construction area\",19.8,IF(O190=\"within area delineated on plan LEGL./16-354\",4.6,\"\")))))","v":0.2},"LOW-MODERATE",{"$f":"IF(Q190=\"\",\"\",IF(Q190=\"No forecast\",0.1,IF(Q190=\"Low-moderate\",0.2,IF(Q190=\"High\",0.5,IF(Q190=\"Very high\",1,IF(Q190=\"Severe\",2,IF(Q190=\"Extreme\",3.5,5)))))))","v":0.2},{"$f":"IF(OR(P190=\"\",R190=\"\"),\"\",IF(AND(O190=\"within electric line construction area\",Q190=\"No forecast\"),1,P190*R190))","v":4.0000000000000008E-2},"E0020843","20190605SPN_01","Street light found burnt but fire had been extinguished prior to fault crew arrival. Supply isolated and disconnect at pit and P/L luminaire replaced. No evidence of ground fire. Investigation conducted but inconclusive, suspected internal fault but unable to ascertain exact cause of luminaire failure which lead to fire."]
[17,154,"2019-06-04T17:07:00",43620.713194444441,-37.878379004330895,147.95815100938501,"21 KALIMNA JETTY ROAD, KALIMNA VIC 3909",1901592,"BDL6","22kV AC","RURAL SHORT"," - fuse (EDO fuse)","three phase","Otherwise started by a distribution system","within area delineated on plan LEGL./16-354",4.5999999999999996,"NO FORECAST",0.1,0.45999999999999996,"E0021472","20190618SPN_02","Candled EDO HV Fuse. No evidence of ground fire"]
[17,155,"2019-06-05T17:30:00",43621.729166666664,-37.812040249308694,147.62860795544199,"46 HOWITT AVENUE, EASTWOOD VIC 3875",5655908,"BDL42","Low voltage AC (<1kV)","RURAL SHORT"," - luminaires (major road)","single phase","Otherwise started by a distribution system","LBRA only",0.2,"NO FORECAST",0.1,2.0000000000000004E-2,"E0020983","20190606SPN_01","Street light appears to have failed internally resulting in it burning.  Investigation carried out but inconclusive, unable to determine cause of failure."]
[17,156,"2019-06-13T11:42:00",43629.487500000003,-37.861109105131497,145.63910895543103,"540 MT BEENAK ROAD, THREE BRIDGES VIC 3797",2601656341,"WYK23","22kV AC","RURAL SHORT"," - fuse (boric acid)","three phase","Otherwise started by a distribution system","within area delineated on plan LEGL./16-354",4.5999999999999996,"NO FORECAST",0.1,0.45999999999999996,"E0021377","20190618SPN_01","Candled BA HV Fuse. No evidence of ground fire"]
[17,157,"2019-06-18T17:40:00",43634.736111111109,-37.323220991278696,144.94216699750601,"118 GEHREYS LANE, KILMORE VIC 3764",4716905,"KMS12","Low voltage AC (<1kV)","RURAL SHORT"," - switch (disconnector/isolator)","single phase","Otherwise started by a distribution system","within area delineated on plan LEGL./16-354",4.5999999999999996,"NO FORECAST",0.1,0.45999999999999996,"E0021521","20190619SPN_01","burnt out transformer lv isolators"]
[17,158,"2019-06-25T10:14:00",43641.426388888889,-38.4561829895259,145.70062999150701,"1 TWITES ROAD, BENA VIC 3946",2008545,"LGA23","Low voltage AC (<1kV)","RURAL LONG"," - connection box","single phase","Otherwise started by a distribution system","HBRA only",1,"NO FORECAST",0.1,0.1,"E0021840","20190626SPN_01","Fault crew attended and found LV fuse box had failed and melted. LV U/G cable had also suffered damage at the fuse box. Suspected bad connections at the LV Fuse box which resulted in fire."]
[17,159,"2019-06-27T09:45:00",43643.40625,-36.318854976861502,146.84212799061902,"6 BACK CREEK ROAD, YACKANDANDAH VIC 3749",5218276,"WOTS11","22kV AC","RURAL LONG"," - fuse (boric acid)","three phase","Otherwise started by a distribution system","within electric line construction area",19.8,"NO FORECAST",0.1,1,"E0021950","20190704SPN_01","Candled Boric Acid HV fuse"]
[17,160,"2019-06-30T13:59:00",43646.582638888889,-37.788380003022397,147.56870099269202,"335 HODGES ESTATE ROAD, ELLASWOOD VIC 3875",1605515,"BDL44","22kV AC","RURAL LONG"," - fuse (boric acid)","single phase","Otherwise started by a distribution system","within area delineated on plan LEGL./16-354",4.5999999999999996,"NO FORECAST",0.1,0.45999999999999996,"E0022092","20190708SPN_07","Boric Acid HV fuse candled. No evidence of ground fire"]

{"sheet":"3. Systems and Audit","index":4,"n_rows":29,"n_cols":5,"rows_kept":29,"cut":false,"hidden":false,"merged":[[28,1,29,4],[3,5,3,6],[4,5,4,6],[5,5,5,6],[6,1,6,4],[9,1,9,4],[14,1,14,4],[10,1,10,4],[13,1,13,4],[12,1,12,4],[11,1,11,4],[19,4,21,4]]}
[null,{"$f":"IF(Cover!D27=\"\",\"[DNSP Name]\", Cover!D27)","v":"AusNet Services"}]
[null,"F-factor data reporting"]
[null,{"$f":"IF(Cover!D33=\"\",\"[Year]\",Cover!D33)","v":"2018/19"}]
[]
[]
[null,"Instructions:"]
[]
[null,{"$f":"IF(Cover!D27=\"\",\"[DNSP Name] must provide:\", CONCATENATE(Cover!D27,\" must provide:\"))","v":"AusNet Services must provide:"}]
[]
[null,"Table 4 - Information or reporting systems"]
[null,"   (1) Name of any IT system used to collect fire start data or fault event data - i.e. SCADA system, or fault reporting system"]
[null,"   (2) Whether the fire recording or fault recording process has been audited or complies with a relevant Australian or industry standard - Yes or No"]
[null,"   (3) List any relevant Australian or industry standards that the fire recording or fault recording process complies with"]
[null,"   (4) Whether the data entered into or removed from the IT system has been audited - Yes or No"]
[]
[]
[null,"Table 4: Information or reporting systems"]
[]
[null,"Information or reporting systems","Name","System Audited","Relevant Standards"]
[null,"System 1","Poweron (OMS)","Yes","ISO 9001\nISO55000\nElectricity Safey (Bushfire Mitigation) Regulations\nElectricity Safety (Management) Regulations"]
[null,"System 2","IMS","Yes"]
[null,"System 3 ","Smallworld GIS (SDME) /SAP","Yes"]
[null,"System 4","ENABLON","Yes","(as above)"]
[null,"System 5","EM-COP","Unknown","https://scc.em.vic.gov.au/cgi-bin/scc/fdrhistory/home"]
[null,"System 6"]
[null,"System 7"]
[null,"System 8"]
[]
[null,"The SGSPAA Internal Audit function undertakes a programme of work in accordance with the SGSPAA Group Internal Audit Plan. This internal audit activity covers elements of the systems and process used for capturing, recording and maintaining fire start data."]